Period,Quarter,"Recipient Name",City,Province,Country,Title,Language,Genre,Date,"Final Value","Original Value",Type,Purpose,Comments
2018-2019,P1,"Microscope Inc.",Montreal,Quebec,Canada,"Temptation to exist",English,Sci.fi./Fantasy/Tale,2018-04-10,167570.00,38000.00,Advance,"Development Program","Amended contract signed  20-FEB-15"
2018-2019,P1,"Mongrel Media Inc.",Toronto,Ontario,Canada,"Mostly Sunny",English,Documentary,2018-05-03,99257.00,195000.00,Advance,"Marketing Program","Amended contract signed  23-MAR-17"
2018-2019,P2,"2180238 Ontario Inc. d/b/a Mimetic Entertainment",Essex,Ontario,Canada,"Four Shots",English,Thriller,2018-07-20,12000.00,12000.00,Advance,"Development Program","Amended contract signed  29-OCT-10"
2018-2019,P2,"Kickham East Productions Inc.","St. John's",Newfoundland/Labrador,Canada,"St. John's West",English,"Romantic Comedy",2018-07-20,0.00,22400.00,Advance,"Development Program","Amended contract signed  16-JAN-13"
2018-2019,P2,"Best Boy Productions Limited","Mount Pearl",Newfoundland/Labrador,Canada,Nexus,English,Thriller,2018-07-20,45098.00,29902.00,Advance,"Development Program","Amended contract signed  13-NOV-13"
2018-2019,P2,"Best Boy Productions Limited","Mount Pearl",Newfoundland/Labrador,Canada,"Laneway (The)",English,Thriller,2018-07-20,15000.00,19920.00,Advance,"Development Program","Amended contract signed  22-SEP-14"
2018-2019,P2,"Montefiore Films Inc.",Sudbury,Ontario,Canada,Rollercoaster,English,"Drama (Film)",2018-08-21,0.00,15000.00,Advance,"Development Program","Amended contract signed  15-MAR-16"
2018-2019,P2,"Manis Film Consultants Inc.",Toronto,Ontario,Canada,Count,English,Action/Adventure,2018-09-25,15000.00,15000.00,Advance,"Development Program","Amended contract signed  21-JAN-16"
2018-2019,P3,"Item 7 Copro inc",Montreal,Quebec,Canada,"Fils de Jean (Le)",French,"Drama (Film)",2018-10-04,2464.00,2968.00,Contribution,"International Marketing Program","Amended contract signed  14-FEB-17"
2018-2019,P3,"Buffalo Gal Pictures Inc.",Winnipeg,Manitoba,Canada,Thaw,English,Horror,2018-10-18,31400.00,15000.00,Advance,"Development Program","Amended contract signed  11-DEC-15"
2018-2019,P3,"Buffalo Gal Pictures Development Inc.",Winnipeg,Manitoba,Canada,"Less Than Kind Movie - Janukah",English,Comedy,2018-10-19,123294.00,40599.00,Advance,"Development Program","Amended contract signed  14-NOV-13"
2018-2019,P3,"Rajotte Productions Inc.",Winnipeg,Manitoba,Canada,"Concrete Indian",English,"Drama (Film)",2018-10-22,0.00,25000.00,Advance,"Development Program","Amended contract signed  17-JAN-13"
2018-2019,P3,"Isuma Distribution International Ltd.",Montreal,Quebec,Canada,"Maliglutit (Searchers)",English,"Drama (Film)",2018-10-23,188049.00,37390.00,Advance,"Marketing Program","Amended contract signed  30-SEP-16"
2018-2019,P3,"Bravo Charlie inc.",Montreal,Quebec,Canada,"Chien de garde",French,Thriller,2018-10-24,100000.00,100000.00,Contribution,"International Marketing Program",
2018-2019,P3,"Encore Films inc.",Montreal,Quebec,Canada,"Pour r�ussir un poulet",French,"Drama (Film)",2018-10-29,10119.00,15000.00,Advance,"Development Program","Amended contract signed  08-NOV-16"
2018-2019,P3,"The Film Farm Inc.",Toronto,Ontario,Canada,"English Child (The)",English,Horror,2018-10-30,97534.00,25672.00,Advance,"Development Program","Amended contract signed  28-JAN-15"
2018-2019,P3,"Attraction Images inc.",Montreal,Quebec,Canada,Cupidon,French,"Romantic Comedy",2018-11-05,88697.00,23500.00,Advance,"Development Program","Amended contract signed  16-NOV-16"
2018-2019,P3,"Brightlight Pictures Development Inc.",Burnaby,"British Columbia",Canada,"Collapse of Dignity",English,"Drama (Film)",2018-11-21,0.00,15000.00,Advance,"Development Program","Amended contract signed  16-FEB-17"
2018-2019,P3,"Swear Net Holdings Incorporated",Dartmouth,"Nova Scotia",Canada,"Trailer Park Boys 4:20",English,Comedy,2018-11-26,0.00,74975.00,Advance,"Development Program","Amended contract signed  06-JAN-15"
2018-2019,P3,"9086-6351 Qu�bec Inc. (Les films du passeur)","Saint-Paulin ",Quebec,Canada,"Oncle Bernard - L'anti-le�on d'�conomie",French,Documentary,2018-11-28,7131.00,7500.00,Advance,"Marketing Program","Amended contract signed  04-FEB-16"
2018-2019,P3,"Productions Pixcom Inc.",Montreal,Quebec,Canada,"projet Sam",French,"Drama (Film)",2018-11-29,428090.00,200000.00,Advance,"Development Program","Amended contract signed  02-DEC-16"
2018-2019,P3,"Raven Banner Releasing Inc.",Toronto,Ontario,Canada,"Todd & The Book of Pure Evil: The End of The End",English,Comedy,2018-12-07,142842.00,19350.00,Advance,"Marketing Program","Amended contract signed  09-MAR-17"
2018-2019,P4,"Serendipity Point Films Inc.",Toronto,Ontario,Canada,Feral,English,Thriller,2019-01-25,198189.00,18232.00,Advance,"Development Program","Amended contract signed  22-DEC-16"
2018-2019,P4,"Distribution H264",Montreal,Quebec,Canada,"Fauve et Marguerite",French,"Drama (Film)",2019-01-31,20000.00,20000.00,Contribution,"International Marketing Program",
2018-2019,P4,"Pope Productions Ltd.","St. John's",Newfoundland/Labrador,Canada,"East of West",English,"Drama (Film)",2019-02-05,0.00,15000.00,Advance,"Development Program","Amended contract signed  28-JUN-16"
2018-2019,P4,"Films S�ville Inc. (Les) / Seville Pictures Inc.",Montreal,Quebec,Canada,"HOCHELAGA, TERRE DES �MES",French,"Historical Drama",2019-02-07,92565.00,100000.00,Contribution,"International Marketing Program","Amended contract signed  17-NOV-17"
2018-2019,P4,"Brother Productions Inc.","North Vancouver","British Columbia",Canada,"Brother (The)",English,"Drama (Film)",2019-02-11,558000.00,620000.00,Equity,"Production Program","Amended contract signed  27-MAR-13"
2018-2019,P4,"January Films Ltd.",Toronto,Ontario,Canada,"000122634 - Inconceivable",English,Comedy,2019-02-12,35154.00,34900.00,Advance,"Development Program","Amended contract signed  07-MAR-13"
2018-2019,P4,"Buck Productions Inc.",Toronto,Ontario,Canada,CTRL,English,Sci.fi./Fantasy/Tale,2019-02-12,3980.00,15000.00,Advance,"Development Program","Amended contract signed  10-NOV-16"
2018-2019,P4,"Productions Dixie Inc. (les)",Montreal,Quebec,Canada,"Out Late",English,Comedy,2019-02-14,64233.00,1500000.00,Equity,"Production Program","Amended contract signed  29-MAR-17"
2018-2019,P4,"Films S�ville Inc. (Les) / Seville Pictures Inc.",Montreal,Quebec,Canada,"Juste la fin du monde",French,"Drama (Film)",2019-02-18,90000.00,100000.00,Contribution,"International Marketing Program","Amended contract signed  19-JAN-17"
2018-2019,P4,"Attraction Distribution Internationale Inc. / Attraction International Distribution Inc.",Montreal,Quebec,Canada,"Nitro Rush",French,Action/Adventure,2019-02-18,2626.00,3400.00,Contribution,"International Marketing Program","Amended contract signed  01-JUN-16"
2018-2019,P4,"Infinity Features Development Inc.",Vancouver,"British Columbia",Canada,"SLATE - Infinity Features Development Inc.",English,N/A,2019-02-18,200000.00,250000.00,Advance,"Development Program","Amended contract signed  07-MAR-08"
2018-2019,P4,"9269-0791 Qu�bec Inc.",Montreal,Quebec,Canada,"Montr�al la blanche",French,"Drama (Film)",2019-02-19,1546.00,2700.00,Contribution,"International Marketing Program","Amended contract signed  12-FEB-16"
2018-2019,P4,"Keystone Pictures Inc.",Vancouver,"British Columbia",Canada,"SLATE - Keystone Pictures Inc.",English,N/A,2019-02-19,146400.00,183000.00,Advance,"Development Program","Amended contract signed  17-FEB-09"
2018-2019,P4,"Parnassus Productions Inc.",Vancouver,"British Columbia",Canada,"Imaginarium of Dr. Parnassus (The)",English,Sci.fi./Fantasy/Tale,2019-02-20,1704349.00,1000000.00,Equity,"Production Program","Amended contract signed  06-MAR-08"
2018-2019,P4,"A Media Inc.",Montreal,Quebec,Canada,Morissette,French,"Drama (Film)",2019-03-22,0.00,15000.00,Advance,"Development Program","Amended contract signed  29-JUN-16"
2018-2019,P4,"PCF Ballerina Le film Inc.",Montreal,Quebec,Canada,Ballerina,English,Drama,2019-02-19,1224445.00,1250000.00,Investment,"Production Program","Amended Contract Signed 23-Dec-2013"
2018-2019,P4,"9012-6640 Qu�bec inc. (K-Films Am�rique)",Montreal,Quebec,Canada,"Bruit des arbres (Le)",French,Drama,2019-02-19,30000.00,60000.00,Advance,"Marketing Program","Amended Contract Signed 25-Nov-2014"
2018-2019,P4,"Weirdos The Film Inc.",Halifax,"Nova Scotia",Canada,WEIRDOS,English,Drama,2019-01-23,699136.00,450000.00,Investment,"Production Program","Amended Contract Signed 15-Sep-2015"
2018-2019,P4,"YXY Productions Inc.",Burnaby,"British Columbia",Canada,"No Men Beyond This Point",English,Comedy,2019-02-19,16687.00,22500.00,Advance,"Marketing Program","Amended Contract Signed 12-Jan-2016"
2018-2019,P4,"9220-5368 Qu�bec Inc.","Ste-Famille I.O.",Quebec,Canada,"Chute de Sparte (La)",French,Drama,2019-02-20,1030000.00,1000000.00,Investment,"Production Program","Amended Contract Signed 15-Sep-2016"
2018-2019,P2,"TA3 Inc.",Montreal,Quebec,Canada,"Trip � trois (Le)",French,Comedy,2018-08-07,1335595.00,1350000.00,Investment,"Production Program","Amended Contract Signed 14-Mar-2016"
2018-2019,P3,"Productions Miraculum Inc.",Montreal,Quebec,Canada,"Nous sommes les autres",French,Drama,2018-10-31,1200000.00,1150000.00,Advance,"Production Program","Amended Contract Signed 11-Oct-2016"
2018-2019,P3,"Our House Films Canada Inc.",Toronto,Ontario,Canada,"Our House",English,Drama,2018-11-28,2136034.00,2300000.00,Investment,"Production Program","Amended Contract Signed 10-Jun-2016"
2018-2019,P1,"A71 Entertainment Inc.",Toronto,Ontario,Canada,Darken,English,"Science fiction/Fantasy/Tale",2018-04-25,123750.00,40000.00,Advance,"Marketing Program","Amended Contract Signed 21-Nov-2016"
2018-2019,P1,"Mongrel Media Inc.",Toronto,Ontario,Canada,"Other Half (The)",English,Drama,2018-04-06,25586.00,33413.00,Advance,"Marketing Program","Amended Contract Signed 30-Nov-2016"
2018-2019,P1,"Mongrel Media Inc.",Toronto,Ontario,Canada,"Window Horses",English,Drama,2018-04-06,59320.00,143625.00,Advance,"Marketing Program","Amended Contract Signed 01-Mar-2017"
2018-2019,P1,"Loud Baby Productions Inc.",Halifax,"Nova Scotia",Canada,"Perfume War",English,Documentary,2018-05-17,35805.00,41395.00,Advance,"Marketing Program","Amended Contract Signed 30-Mar-2017"
2018-2019,P1,"2513073 Ontario Inc.",Toronto,Ontario,Canada,Sharkwater:Extinction,English,Documentary,2018-05-17,125000.00,125000.00,Investment,"Theatrical Documentary Program",
2018-2019,P2,"9379-1176 Qu�bec Inc.",Saint-Ours,Quebec,Canada,"Une mani�re de vivre",French,Drama,2018-08-30,1150000.00,1150000.00,Investment,"Production Program",
2018-2019,P2,"SPF (Songs) Productions Inc.",Toronto,Ontario,Canada,"The Song of Names",English,Drama,2018-09-06,9000000.00,7000000.00,Investment,"Production Program","Amended Contract Signed 09-Mar-2018"
2018-2019,P1,"Films S�ville Inc. (Les)",Montreal,Quebec,Canada,"Initiative iTunes - Canada 150 (Films S�ville)",,,2018-06-22,187591.00,187591.00,Contribution,"Promotion Program","Amended Contract Signed 22-Dec-2017"
2018-2019,P2,"Funfilm Distribution Inc.",Montreal,Quebec,Canada,"Initiative iTunes - Canada 150 ( Funfilms Distribution)",,,2018-07-10,1285.00,1778.00,Contribution,"Promotion Program","Amended Contract Signed 17-May-2017"
2018-2019,P3,"Groupe TVA inc. (Faisant affaires sous le nom de TVA Films)",Montreal,Quebec,Canada,"Initiative iTunes - Canada 150 (TVA films)",,,2018-11-15,5285.00,6500.00,Contribution,"Promotion Program","Amended Contract Signed 13-Jul-2017"
2018-2019,P3,"REMSTAR FILMS INC.",Montreal,Quebec,Canada,"Initiative iTunes - Canada 150 (Remstar films)",,,2018-11-30,5902.00,5733.00,Contribution,"Promotion Program","Amended Contract Signed 13-Jun-2017"
2018-2019,P4,"Christal Films Productions Inc.",Montreal,Quebec,Canada,"Hana's Suitcase",English,"Historical Drama",2019-01-24,89245.00,200000.00,Advance,"Production Program","Amended Contract Signed 30-Mar-2017"
2018-2019,P4,"Mongrel Media Inc.",Toronto,Ontario,Canada,"Initiative iTunes - Canada 150 (Mongrel Media Inc.)",,,2019-03-25,12846.00,10608.00,Contribution,"Promotion Program","Amended Contract Signed 15-Jun-2017"
2018-2019,P3,"A71 Entertainment Inc.",Toronto,Ontario,Canada,"An American Dream: The Education of William Bowman",English,,2018-11-19,54774.00,76000.00,Advance,"Marketing Program","Amended Contract Signed 05-May-2017"
2018-2019,P3,"1961846 Ontario Inc.",Toronto,Ontario,Canada,"Nobody Famous",English,Comedy,2018-11-06,45957.00,50000.00,Contribution,"Production Program","Amended Contract Signed 22-Aug-2017"
2018-2019,P2,"Sea Green Pictures Inc.",Halifax,"Nova Scotia",Canada,Spinster,English,Drama,2018-09-11,100000.00,0.00,Investment,"Production Program","Amended Contract Signed 28-Feb-2018"
2018-2019,P4,"Evolution Agency Productions Inc.",Toronto,Ontario,Canada,"Sugar Daddy",English,Drama,2019-02-11,350000.00,350000.00,Investment,"Production Program",
2018-2019,P3,"Productions du Rapide-Blanc Inc. (Les)",Montreal,Quebec,Canada,"Qu�bec My Country Mon Pays",French,Documentary,2018-10-17,11159.00,14000.00,Advance,"Marketing Program","Amended Contract Signed 04-Aug-2017"
2018-2019,P1,"Back 40 Pictures Inc.",St-Catharines,Ontario,Canada,Rabid,English,Horror,2018-05-04,1800000.00,1800000.00,Investment,"Production Program",
2018-2019,P2,"Back 40 Pictures Inc.",St-Catharines,Ontario,Canada,Rabid,English,Horror,2018-08-21,2100000.00,1800000.00,Investment,"Production Program","Amended Contract Signed 04-May-2018"
2018-2019,P3,"T�l�fiction Distribution et Marketing Inc.",Montreal,Quebec,Canada,"Rois mongols (Les)",French,Drama,2018-10-09,308294.00,317613.00,Advance,"Marketing Program","Amended Contract Signed 11-Sep-2017"
2018-2019,P3,"Sienna Films Productions XVII Inc.",Toronto,Ontario,Canada,"Sweetness In The Belly",English,Drama,2018-11-27,1247583.00,1247583.00,Investment,"Production Program",
2018-2019,P3,"Films S�ville Inc. (Les)",Montreal,Quebec,Canada,"Un sac de billes",French,,2018-11-28,82891.00,88416.00,Advance,"Marketing Program","Amended Contract Signed 23-Mar-2018"
2018-2019,P1,"Canadian Film in the Schools",Toronto,Ontario,Canada,"Canadian Film in the Schools  + National Canadian Film Day",,,2018-04-03,304113.00,154113.00,Contribution,"Promotion Program","Amended Contract Signed 07-Jul-2017"
2018-2019,P4,"Sienna Films Productions XVIII INC.",Toronto,Ontario,Canada,"Happy Place",English,Drama,2019-03-27,1200000.00,1200000.00,Investment,"Production Program",
2018-2019,P2,"Indian Horse Productions (BC) Inc.",Vancouver,"British Columbia",Canada,"Indian Horse",English,Drama,2018-08-09,117000.00,50000.00,Advance,"Marketing Program","Amended Contract Signed 03-Oct-2017"
2018-2019,P3,"Search Engine Films Inc.",Toronto,Ontario,Canada,Sundowners,English,,2018-10-12,48969.00,56666.00,Advance,"Marketing Program","Amended Contract Signed 19-Dec-2017"
2018-2019,P1,"Thunderbird Entertainment Inc.",Vancouver,"British Columbia",Canada,Entanglement,English,,2018-04-26,44962.00,44962.00,Advance,"Marketing Program",
2018-2019,P2,"Film Mytho Inc.",Montreal,Quebec,Canada,"MENTEUR (A.K.A MYTHO)",French,Comedy,2018-08-03,2700000.00,2700000.00,Advance,"Production Program",
2018-2019,P2,"L'OEIL VIF (Faisant affaire sous le nom Les Films du 3 mars)",Montreal,Quebec,Canada,"LA R�SURRECTION D'HASSAN",French,Documentary,2018-09-26,19900.00,20000.00,Advance,"Marketing Program","Amended Contract Signed 07-Nov-2017"
2018-2019,P4,"Eye Steel Film Distribution inc.",Montreal,Quebec,Canada,"Let There Be Light",English,,2019-02-05,31334.00,31407.00,Advance,"Marketing Program","Amended Contract Signed 07-Dec-2017"
2018-2019,P2,"Hispaniola Productions Inc.",Toronto,Ontario,Canada,Hispaniola,English,Documentary,2018-07-30,125000.00,125000.00,Contribution,"Theatrical Documentary Program",
2018-2019,P1,"9286-4883 Qu�bec Inc. (faisant affaire sous le nom de L'embuscade Films)",Montreal,Quebec,Canada,Archipel,French,Documentary,2018-05-30,125000.00,125000.00,Investment,"Theatrical Documentary Program",
2018-2019,P4,"Rhombus Possessor Inc.",Toronto,Ontario,Canada,Possessor,English,Drama,2019-03-20,0.00,150000.00,Advance,"Production Program","Amended Contract Signed 06-Oct-2017"
2018-2019,P4,"Rhombus Possessor Inc.",Toronto,Ontario,Canada,Possessor,English,Drama,2019-03-20,150000.00,0.00,Investment,"Production Program","Amended Contract Signed 06-Oct-2017"
2018-2019,P3,"Funfilm Distribution Inc.",Montreal,Quebec,Canada,"Les d�poss�d�s",French,,2018-10-12,18267.00,20000.00,Advance,"Marketing Program","Amended Contract Signed 09-Jan-2018"
2018-2019,P2,"Productions Triangle inc.",Aston-Jonction,Quebec,Canada,"Prisons sans barreaux",French,Documentary,2018-09-17,125000.00,125000.00,Contribution,"Theatrical Documentary Program",
2018-2019,P2,"9174-5018 Qu�bec inc.",Montreal,Quebec,Canada,"Le Petit Tom",French,Documentary,2018-09-17,125000.00,125000.00,Contribution,"Theatrical Documentary Program",
2018-2019,P1,"9249-9847 Qu�bec inc.",Montreal,Quebec,Canada,"Ziva Postec.  La monteuse derri�re le film Shoah",French,Documentary,2018-05-18,40000.00,40000.00,Contribution,"Theatrical Documentary Program",
2018-2019,P3,"9212-5913 Qu�bec inc.",Montreal,Quebec,Canada,"Misogynie 2.0",French,Documentary,2018-10-25,125000.00,125000.00,Contribution,"Theatrical Documentary Program",
2018-2019,P2,"CCDE Productions Inc.",Toronto,Ontario,Canada,"The Corporate Coup d'Etat",English,Documentary,2018-08-30,125000.00,125000.00,Investment,"Theatrical Documentary Program",
2018-2019,P4,"9231-8419 Qu�bec Inc. dba Productions Parabola",Montreal,Quebec,Canada,Billy,English,Documentary,2019-03-14,125000.00,125000.00,Contribution,"Theatrical Documentary Program",
2018-2019,P2,"Pursuing Giraffe Adventures Inc.",Toronto,Ontario,Canada,"The Woman Who Loves Giraffes (aka Anne of Africa)",English,Documentary,2018-07-18,74000.00,74000.00,Advance,"Theatrical Documentary Program",
2018-2019,P1,"Macumba M�dia II Inc",Montreal,Quebec,Canada,"En attendant Raif -",French,Documentary,2018-05-30,65000.00,65000.00,Contribution,"Theatrical Documentary Program",
2018-2019,P2,"Grand Prairie Film Inc.",Calgary,Alberta,Canada,"Grand Prairie",English,Documentary,2018-08-02,125000.00,125000.00,Investment,"Theatrical Documentary Program",
2018-2019,P3,"Illusions of Control Film Inc.",Vancouver,"British Columbia",Canada,"Illusions of Control",English,Documentary,2018-11-19,125000.00,125000.00,Investment,"Theatrical Documentary Program",
2018-2019,P1,"Studio Via Le Monde Inc. (Le)",Dorval,Quebec,Canada,"Mon cri saura parler",French,Documentary,2018-05-04,50000.00,50000.00,Contribution,"Theatrical Documentary Program",
2018-2019,P2,"TINAM Inc.",Toronto,Ontario,Canada,"This is Not a Movie",English,Documentary,2018-07-25,125000.00,125000.00,Investment,"Theatrical Documentary Program",
2018-2019,P4,"Insight Lightfoot Ltd.",Toronto,Ontario,Canada,"Gordon Lightfoot: If You Could Read My Mind",English,Documentary,2019-02-28,125000.00,125000.00,Contribution,"Theatrical Documentary Program",
2018-2019,P4,"Charlotte Productions Inc.",Toronto,Ontario,Canada,CHARLOTTE,English,"Historical Drama",2019-01-09,2300000.00,2300000.00,Investment,"Production Program",
2018-2019,P1,"A Rude Film Inc.",Halifax,"Nova Scotia",Canada,"Assholes: A Theory",English,Documentary,2018-05-22,66783.00,66783.00,Contribution,"Theatrical Documentary Program",
2018-2019,P3,"Les Films Mafia inc.",Montreal,Quebec,Canada,"Mafia Inc.",French,Mystery/Crime/Police,2018-11-21,3024000.00,3024000.00,Advance,"Production Program",
2018-2019,P2,"9187-1608 Qu�bec inc",Longueuil,Quebec,Canada,"La Beaut� du monde",French,"Romantic Comedy",2018-08-03,1100000.00,1100000.00,Investment,"Production Program",
2018-2019,P3,"Axia Films inc.",Montreal,Quebec,Canada,"Y'EST OU LE PARADIS",French,Drama,2018-11-16,36260.00,40000.00,Advance,"Marketing Program","Amended Contract Signed 02-Feb-2018"
2018-2019,P3,"Films S�ville Inc. (Les)",Montreal,Quebec,Canada,"Double Peine",French,,2018-11-26,32289.00,45305.00,Advance,"Marketing Program","Amended Contract Signed 23-Mar-2018"
2018-2019,P4,"9321-3023 Qu�bec Inc.",Montreal,Quebec,Canada,Vinland,French,"Historical Drama",2019-03-28,1400000.00,1400000.00,Advance,"Production Program",
2018-2019,P2,"Rire ou pleurer? Inc.",Montreal,Quebec,Canada,"Le rire",French,Drama,2018-08-28,950000.00,950000.00,Advance,"Production Program",
2018-2019,P3,"Films Christal, s.e.c.(Les), agissant par l'interm�diaire de son commandit�, Les Films Christal Inc",Montreal,Quebec,Canada,"Nous sommes les autres",French,Drama,2018-11-08,63012.00,73952.00,Advance,"Marketing Program","Amended Contract Signed 23-Mar-2018"
2018-2019,P2,"Les Films Insiders inc.",Montreal,Quebec,Canada,"IL PLEUVAIT DES OISEAUX",French,Drama,2018-08-01,1200000.00,1200000.00,Investment,"Production Program",
2018-2019,P3,"Level Film Inc.",Toronto,Ontario,Canada,"The Death (and Life) of Carl Naardlinger",English,,2018-12-13,24589.00,25161.00,Advance,"Marketing Program","Amended Contract Signed 13-Mar-2018"
2018-2019,P3,"D Films Corporation",Toronto,Ontario,Canada,Clara,English,,2018-11-21,318188.00,165656.00,Advance,"Marketing Program","Amended Contract Signed 12-Feb-2018"
2018-2019,P3,"Groupe TVA inc. (Faisant affaires sous le nom de TVA Films)",Montreal,Quebec,Canada,"Someone Else's Wedding",English,"Romantic Comedy",2018-10-19,25978.00,25978.00,Advance,"Marketing Program",
2018-2019,P3,"Entract Films Inc.",Montreal,Quebec,Canada,"LES SC�NES FORTUITES",French,Comedy,2018-11-14,32935.00,37575.00,Advance,"Marketing Program","Amended Contract Signed 07-Feb-2018"
2018-2019,P1,"Thunderbird Entertainment Inc.",Vancouver,"British Columbia",Canada,"Never Steady Never Still",English,,2018-06-27,29543.00,29543.00,Advance,"Marketing Program",
2018-2019,P1,"A71 Entertainment Inc.",Toronto,Ontario,Canada,"Another Wolfcop",English,Horror,2018-04-26,67683.00,67683.00,Advance,"Marketing Program",
2018-2019,P4,"Funfilm Distribution Inc.",Montreal,Quebec,Canada,Venus,English,,2019-02-06,36250.00,45000.00,Advance,"Marketing Program","Amended Contract Signed 20-Mar-2018"
2018-2019,P2,"Film Fabuleuses Inc.",Montreal,Quebec,Canada,Fabuleuses,French,Comedy,2018-07-31,1000000.00,1000000.00,Investment,"Production Program",
2018-2019,P1,"Raven Banner Releasing Inc.",Toronto,Ontario,Canada,"Swinger's Weekend",English,,2018-04-26,40000.00,40000.00,Advance,"Marketing Program",
2018-2019,P4,"F�lix et le tr�sor de Morg�a inc.",Saint-Augustin-de-Desmaures,Quebec,Canada,"F�lix et le tr�sor de Morg�a",French,Action/Adventure,2019-02-08,1100000.00,1100000.00,Advance,"Production Program",
2018-2019,P1,"Run This Town Film Inc.",Toronto,Ontario,Canada,"Run This Town",English,Drama,2018-04-19,1200000.00,1200000.00,Investment,"Production Program",
2018-2019,P4,"Run This Town Film Inc.",Toronto,Ontario,Canada,"Run This Town",English,Drama,2019-02-25,1275000.00,1200000.00,Investment,"Production Program","Amended Contract Signed 19-Apr-2018"
2018-2019,P1,"Maison 4:3 Inc.",Montreal,Quebec,Canada,"Terre vue du coeur (La)",French,,2018-06-14,99210.00,65000.00,Advance,"Marketing Program","Amended Contract Signed 21-Mar-2018"
2018-2019,P1,"Elevation Pictures Corp.",Toronto,Ontario,Canada,"Hollow In The Land",English,Action/Adventure,2018-05-22,94333.00,94333.00,Advance,"Marketing Program",
2018-2019,P2,"Elevation Pictures Corp.",Toronto,Ontario,Canada,"Hollow In The Land",English,Action/Adventure,2018-08-28,85607.00,94333.00,Advance,"Marketing Program","Amended Contract Signed 22-May-2018"
2018-2019,P2,"Films Vision 4 Inc.",Montreal,Quebec,Canada,Jouliks,French,Drama,2018-07-24,1250000.00,1250000.00,Investment,"Production Program",
2018-2019,P3,"9183-5942 Qu�bec inc.",Montreal,Quebec,Canada,Pomp�i,French,Drama,2018-10-25,270000.00,270000.00,Investment,"Production Program",
2018-2019,P4,"Level Film Inc.",Toronto,Ontario,Canada,"Another Kind of Wedding",English,,2019-01-28,25508.00,30000.00,Advance,"Marketing Program","Amended Contract Signed 27-Mar-2018"
2018-2019,P1,"Level Film Inc.",Toronto,Ontario,Canada,Juggernaut,English,,2018-04-17,30000.00,30000.00,Advance,"Marketing Program",
2018-2019,P3,"Level Film Inc.",Toronto,Ontario,Canada,Juggernaut,English,,2018-11-26,26789.00,30000.00,Advance,"Marketing Program","Amended Contract Signed 17-Apr-2018"
2018-2019,P3,"Rhombus On The Lake Inc.",Toronto,Ontario,Canada,"Clifton Hill",English,Mystery/Crime/Police,2018-10-12,2695000.00,2695000.00,Investment,"Production Program",
2018-2019,P1,"Mary Goes Round Movie Inc.",Toronto,Ontario,Canada,"Mary goes Round",English,,2018-05-18,26441.00,26441.00,Advance,"Marketing Program",
2018-2019,P4,"Films S�ville Inc. (Les)",Montreal,Quebec,Canada,"POUR VIVRE ICI",French,Drama,2019-02-04,113566.00,127950.00,Advance,"Marketing Program","Amended Contract Signed 23-Mar-2018"
2018-2019,P1,"9164-6828 Qu�bec Inc. (d/b/a Productions Loaded Pictures)",Montreal,Quebec,Canada,ABU,English,,2018-06-14,35000.00,35000.00,Advance,"Marketing Program",
2018-2019,P4,"Samuel Goldwyn Films, LLC","Culver City",California,"United States",Allure,English,Drama,2019-03-25,29500.00,29500.00,Contribution,"Export Assistance Program",
2018-2019,P2,"Films Baliverna Inc. (les)",Laval,Quebec,Canada,"Burn Out ou La Servitude Volontaire",French,Drama,2018-07-27,30000.00,30000.00,Advance,"Marketing Program",
2018-2019,P1,"Raven Banner Releasing Inc.",Toronto,Ontario,Canada,"North Mountain",English,,2018-05-23,30000.00,30000.00,Advance,"Marketing Program",
2018-2019,P1,"Sinking Ship (Dino Dana Movie) Productions Inc.",Toronto,Ontario,Canada,"Dino Dana: The Movie",English,Drama,2018-06-27,850000.00,850000.00,Investment,"Production Program",
2018-2019,P2,"AW Canada Films Inc.",Toronto,Ontario,Canada,"American Woman",English,Drama,2018-07-31,2300000.00,2300000.00,Investment,"Production Program",
2018-2019,P3,"Raven Banner Releasing Inc.",Toronto,Ontario,Canada,"The Go-Getters",English,Comedy,2018-12-13,15015.00,15015.00,Advance,"Marketing Program",
2018-2019,P3,"Baldy Film  Inc.",Toronto,Ontario,Canada,Baldy,English,Drama,2018-11-19,450000.00,450000.00,Contribution,"Production Program",
2018-2019,P4,"PCF Bravest Le Film  Inc.",Montreal,Quebec,Canada,"Fireheart - (aka The Bravest)",English,Comedy,2019-03-27,4000000.00,4000000.00,Investment,"Production Program",
2018-2019,P1,"Sienna Films Inc.",Toronto,Ontario,Canada,"Sweetness In The Belly",English,Drama,2018-05-02,324884.00,324884.00,Advance,"Production Program",
2018-2019,P4,"Sienna Films Inc.",Toronto,Ontario,Canada,"Sweetness In The Belly",English,Drama,2019-01-29,0.00,324884.00,Advance,"Production Program","Amended Contract Signed 02-May-2018"
2018-2019,P4,"Sienna Films Inc.",Toronto,Ontario,Canada,"Sweetness In The Belly",English,Drama,2019-01-29,324884.00,0.00,Investment,"Production Program","Amended Contract Signed 02-May-2018"
2018-2019,P1,"James Vs Productions Inc.",Toronto,Ontario,Canada,"James vs. His Future Self",English,Comedy,2018-05-23,450000.00,450000.00,Investment,"Production Program",
2018-2019,P4,"9232-2437 Qu�bec Inc.",Montreal,Quebec,Canada,"My Salinger Year",English,Drama,2019-03-28,3150000.00,3150000.00,Investment,"Production Program",
2018-2019,P4,"9324-3160 Qu�bec Inc.",Montreal,Quebec,Canada,"Les barbares de la Malbaie",French,Drama,2019-03-18,500000.00,500000.00,Contribution,"Production Program",
2018-2019,P4,"Les Films 1976 Inc.",Montreal,Quebec,Canada,Saint-Narcisse,English,"Romantic Comedy",2019-03-08,300000.00,300000.00,Contribution,"Production Program",
2018-2019,P2,"Apapacho, le film Inc.",Montreal,Quebec,Canada,"APAPACHO, une caresse pour l'�me",French,Drama,2018-09-17,445000.00,445000.00,Contribution,"Production Program",
2018-2019,P2,"Les Films Mood Indigo inc.",Montreal,Quebec,Canada,Rosalie,French,Comedy,2018-09-10,125000.00,125000.00,Contribution,"Production Program",
2018-2019,P2,"Entangled Film Inc.",Sudbury,Ontario,Canada,Entangled,English,"Science fiction/Fantasy/Tale",2018-08-30,350000.00,350000.00,Investment,"Production Program",
2018-2019,P2,"""	 Video-Ville Showtime Inc.""",Montreal,Quebec,Canada,Identit�s,French,,2018-09-18,150000.00,150000.00,Advance,"Marketing Program",
2018-2019,P1,"Iylond Entertainment Inc.",Okotoks,Alberta,Canada,"Ice Blue",English,Thriller,2018-05-29,20686.00,20686.00,Advance,"Marketing Program",
2018-2019,P1,"Blac Op Films Incorporated",Dartmouth,"Nova Scotia",Canada,"Black Cop",English,Drama,2018-05-18,1500.00,1500.00,Contribution,"International Marketing Program",
2018-2019,P1,"Aquatinter Films Ltd.",Vancouver,"British Columbia",Canada,"Black Kite",English,Drama,2018-04-17,1500.00,1500.00,Contribution,"International Marketing Program",
2018-2019,P1,"Colonelle films inc.",Montreal,Quebec,Canada,"The Other Rio (L'autre Rio)",French,Documentary,2018-05-25,2500.00,2500.00,Contribution,"International Marketing Program",
2018-2019,P2,"Level Film Inc.",Toronto,Ontario,Canada,Prodigals,English,,2018-09-13,22500.00,22500.00,Advance,"Marketing Program",
2018-2019,P4,"Vase Films Inc.","West Pennant","Nova Scotia",Canada,"Tin Can",English,"Science fiction/Fantasy/Tale",2019-01-31,302897.00,302897.00,Contribution,"Production Program",
2018-2019,P2,"Films Christal, s.e.c.(Les), agissant par l'interm�diaire de son commandit�, Les Films Christal Inc",Montreal,Quebec,Canada,Allure,English,,2018-08-27,97012.00,97012.00,Advance,"Marketing Program",
2018-2019,P4,"Films Christal, s.e.c.(Les), agissant par l'interm�diaire de son commandit�, Les Films Christal Inc",Montreal,Quebec,Canada,Allure,English,,2019-02-19,93268.00,97012.00,Advance,"Marketing Program","Amended Contract Signed 27-Aug-2018"
2018-2019,P2,"Level Film Inc.",Toronto,Ontario,Canada,"22 Chaser",English,,2018-08-23,19387.00,19387.00,Advance,"Marketing Program",
2018-2019,P2,"A71 Entertainment Inc.",Toronto,Ontario,Canada,"Tulipani: Love, Honour and a Bicycle",English,,2018-08-16,107538.00,107538.00,Advance,"Marketing Program",
2018-2019,P1,"2362231 Ontario Inc.",Toronto,Ontario,Canada,Hero,English,,2018-06-18,50000.00,50000.00,Advance,"Marketing Program",
2018-2019,P2,"Elevation Pictures Corp.",Toronto,Ontario,Canada,"Long Time Running",English,Documentary,2018-08-23,165761.00,165761.00,Advance,"Marketing Program",
2018-2019,P3,"Cold Season Films, Inc.","PETTY HARBOUR",Newfoundland/Labrador,Canada,"A Fire In The Cold Season",English,Drama,2018-10-26,238000.00,238000.00,Investment,"Production Program",
2018-2019,P2,"Level Film Inc.",Toronto,Ontario,Canada,"Never Steady, Never Still",English,Drama,2018-08-08,17500.00,17500.00,Contribution,"Export Assistance Program",
2018-2019,P2,"Films S�ville Inc. (Les)",Montreal,Quebec,Canada,"Eye on Juliet",English,,2018-08-27,119574.00,119574.00,Advance,"Marketing Program",
2018-2019,P4,"10619248 Canada Inc.",Montreal,Quebec,Canada,SLAXX,English,Horror,2019-02-13,400000.00,400000.00,Contribution,"Production Program",
2018-2019,P3,"Sparrow & Crow Films Inc.",Gibsons,"British Columbia",Canada,"Monkey Beach",English,Drama,2018-10-17,1739500.00,1739500.00,Investment,"Production Program",
2018-2019,P2,"9323-2007 Qu�bec Inc.",Montreal,Quebec,Canada,"Sashinka (a.k.a. Une fille comme moi)",French,Drama,2018-07-23,3500.00,3500.00,Contribution,"International Marketing Program",
2018-2019,P2,"Raven Banner Releasing Inc.",Toronto,Ontario,Canada,"Black Cop",English,,2018-09-18,51922.00,51922.00,Advance,"Marketing Program",
2018-2019,P4,"Running Home Productions Inc.",Toronto,Ontario,Canada,"Running Home",English,"Romantic Comedy",2019-03-26,600000.00,600000.00,Investment,"Production Program",
2018-2019,P4,"Resonance Films Inc.",Vancouver,"British Columbia",Canada,"THREE TO GET READY",English,"Romantic Comedy",2019-03-26,400000.00,400000.00,Investment,"Production Program",
2018-2019,P4,"9393-7654 Qu�bec Inc.",Montreal,Quebec,Canada,"LIKE A HOUSE ON FIRE",English,Drama,2019-03-26,400000.00,400000.00,Contribution,"Production Program",
2018-2019,P1,"Productions Couzin Inc",Montreal,Quebec,Canada,"R�pertoire des villes disparues",French,"Science fiction/Fantasy/Tale",2018-06-12,1500.00,1500.00,Contribution,"International Marketing Program",
2018-2019,P3,"Tammy Productions Inc.",Oakville,Ontario,Canada,"Tammy's Always Dying",English,Drama,2018-11-29,500000.00,500000.00,Investment,"Production Program",
2018-2019,P4,"Voyelles Films Productions inc.",Montreal,Quebec,Canada,"Nouveau Qu�bec",French,Drama,2019-03-06,500000.00,500000.00,Contribution,"Production Program",
2018-2019,P4,"Carmen Has Been Touched Film Inc.",Toronto,Ontario,Canada,"Carmen Has Been Touched",English,Drama,2019-03-14,450000.00,450000.00,Investment,"Production Program",
2018-2019,P2,"Elevation Pictures Corp.",Toronto,Ontario,Canada,"Indian Horse",English,Drama,2018-09-20,870873.00,870873.00,Advance,"Marketing Program",
2018-2019,P4,"9393-9866 Qu�bec inc.",Montreal,Quebec,Canada,"Montreal Girls",English,Drama,2019-03-25,300000.00,300000.00,Investment,"Production Program",
2018-2019,P4,"Midnight Blue Pictures Inc",Halifax,"Nova Scotia",Canada,"Night Blooms",English,Drama,2019-03-12,262000.00,262000.00,Contribution,"Production Program",
2018-2019,P4,"Range Road 83 Productions Inc.",Calgary,Alberta,Canada,"Range Roads",English,Drama,2019-02-05,170000.00,170000.00,Contribution,"Production Program",
2018-2019,P3,"1992101 Ontario Inc.",Toronto,Ontario,Canada,"Akilla's Escape",English,Drama,2018-11-21,375000.00,375000.00,Investment,"Production Program",
2018-2019,P2,"IGIT Film Ltd.",Vancouver,"British Columbia",Canada,"IN GOD I TRUST",English,Drama,2018-08-24,65000.00,65000.00,Contribution,"Production Program",
2018-2019,P4,"COS Productions Inc.",Winnipeg,Manitoba,Canada,"CINEMA OF SLEEP",English,Mystery/Crime/Police,2019-03-25,400000.00,400000.00,Investment,"Production Program",
2018-2019,P4,"The Ballad of Audrey Earnshaw Film Inc.",Lethbridge,Alberta,Canada,"The Ballad of Audrey Earnshaw",English,Horror,2019-02-26,445000.00,445000.00,Contribution,"Production Program",
2018-2019,P2,"Films Christal, s.e.c.(Les), agissant par l'interm�diaire de son commandit�, Les Films Christal Inc",Montreal,Quebec,Canada,"Un jour mon prince",French,,2018-08-06,20336.00,20336.00,Advance,"Marketing Program",
2018-2019,P4,"Films Christal, s.e.c.(Les), agissant par l'interm�diaire de son commandit�, Les Films Christal Inc",Montreal,Quebec,Canada,"Un jour mon prince",French,,2019-02-19,15309.00,20336.00,Advance,"Marketing Program","Amended Contract Signed 06-Aug-2018"
2018-2019,P4,"Family Farm Films Ltd.","Rose Bay","Nova Scotia",Canada,"Under the Weather",English,Drama,2019-03-05,400000.00,400000.00,Contribution,"Production Program",
2018-2019,P4,"SWTPS Production Inc.",Toronto,Ontario,Canada,"Sex With The Perfect Stranger",English,Drama,2019-03-11,134260.00,134260.00,Investment,"Production Program",
2018-2019,P4,"11184261 Canada Inc.",Montreal,Quebec,Canada,"The Winter Lake",English,Thriller,2019-03-07,107270.00,107270.00,Investment,"Production Program",
2018-2019,P2,"Strike! Movie Manitoba Corp.",Winnipeg,Manitoba,Canada,Strike!,English,Musical,2018-09-04,500000.00,500000.00,Investment,"Production Program",
2018-2019,P4,"9219226 CANADA INC",Charlottetown,"Prince Edward Island",Canada,"A Small Fortune",English,Thriller,2019-03-20,350000.00,350000.00,Investment,"Production Program",
2018-2019,P4,"Hired Hands Productions Ltd.",Edmonton,Alberta,Canada,"Hands that Bind",English,Drama,2019-02-14,220000.00,220000.00,Contribution,"Production Program",
2018-2019,P4,"Medium Density Fibreboard Films Inc.",Toronto,Ontario,Canada,"Fall from the Sky",English,Drama,2019-02-18,75000.00,75000.00,Contribution,"Production Program",
2018-2019,P4,"Medium Density Fibreboard Films Inc.",Toronto,Ontario,Canada,"Fail to Appear",English,Drama,2019-01-28,14019.00,14019.00,Advance,"Marketing Program",
2018-2019,P4,"1459479 Alberta Inc. dba Raging River Productions",Calgary,Alberta,Canada,"Red River",English,Drama,2019-02-26,400000.00,400000.00,Investment,"Production Program",
2018-2019,P4,"Relay Station Development Inc.",Toronto,Ontario,Canada,"Ordinary Days",English,Drama,2019-03-29,3700.00,3700.00,Contribution,"International Marketing Program",
2018-2019,P1,"LLI Films Ltd.",Vancouver,"British Columbia",Canada,Luk'Luk'l,English,,2018-05-17,1500.00,1500.00,Contribution,"International Marketing Program",
2018-2019,P3,"D Films Corporation",Toronto,Ontario,Canada,"Sharkwater: Extinction",English,,2018-10-10,948187.00,948187.00,Advance,"Marketing Program",
2018-2019,P2,"Fragments Distribution Inc.",Montreal,Quebec,Canada,"QUAND L'AMOUR SE CREUSE UN TROU",French,,2018-07-26,35186.00,35186.00,Advance,"Marketing Program",
2018-2019,P3,"Pedro Pires inc.",Montreal,Quebec,Canada,"Alexandre (aka L'homme � la mer / Perdu en mer)",French,Drama,2018-10-18,125000.00,125000.00,Contribution,"Production Program",
2018-2019,P2,"Raven Banner Releasing Inc.",Toronto,Ontario,Canada,"Luk Luk'I",English,,2018-09-26,42900.00,42900.00,Advance,"Marketing Program",
2018-2019,P2,"Orange M�dias Inc.",Rosem�re,Quebec,Canada,Innocent,English,,2018-08-22,3700.00,3700.00,Contribution,"International Marketing Program",
2018-2019,P2,"D Films Corporation",Toronto,Ontario,Canada,"Through Black Spruce",English,,2018-08-31,394125.00,394125.00,Advance,"Marketing Program",
2018-2019,P4,"D Films Corporation",Toronto,Ontario,Canada,"Through Black Spruce",English,,2019-03-04,241593.00,394125.00,Advance,"Marketing Program","Amended Contract Signed 31-Aug-2018"
2018-2019,P2,"9251-5980 Qu�bec Inc.",Montreal,Quebec,Canada,"Jeune Juliette",French,Comedy,2018-08-27,980000.00,980000.00,Investment,"Production Program",
2018-2019,P1,"Aircraft Pictures Limited",Toronto,Ontario,Canada,"Breadwinner (The)",English,Drama,2018-06-12,1500.00,1500.00,Contribution,"International Marketing Program",
2018-2019,P3,"Spectrum Movie Canada Inc.",Toronto,Ontario,Canada,"The Nest",English,Drama,2018-10-15,1200000.00,1200000.00,Investment,"Production Program",
2018-2019,P1,"1164559 B.C. Ltd.","Salt Spring Island","British Columbia",Canada,"Man Proposes, God Disposes",English,Drama,2018-06-06,1500.00,1500.00,Contribution,"International Marketing Program",
2018-2019,P1,"St. John's International Women's Film Festival, Inc.","St. John's",Newfoundland/Labrador,Canada," St. John's International Women's Film Festival",,,2018-06-26,23260.00,23260.00,Contribution,"Promotion Program",
2018-2019,P2,"Canadian Filmmakers Festival",Toronto,Ontario,Canada,"Canadian Filmmakers Festival (Canadian Film Fest)",,,2018-07-11,5000.00,5000.00,Contribution,"Promotion Program",
2018-2019,P1,"FIRST WEEKEND CLUB FILM SOCIETY","North Vancouver","British Columbia",Canada,"First Weekend Club",,,2018-06-11,118350.00,118350.00,Contribution,"Promotion Program",
2018-2019,P1,"Gimli Film Festival Inc.",Gimli,Manitoba,Canada,"Gimli Film Festival 2018",,,2018-06-22,16223.00,16223.00,Contribution,"Promotion Program",
2018-2019,P1,"Kingston Canadian Film Festival",Kingston,Ontario,Canada,"2019 Kingston Canadian Film Festival",,,2018-06-05,3245.00,3245.00,Contribution,"Promotion Program",
2018-2019,P1,"G.P.A. Films Inc.",Longueuil,Quebec,Canada,"Petite fille qui aimait trop les allumettes (La)",French,Drama,2018-06-21,1500.00,1500.00,Contribution,"International Marketing Program",
2018-2019,P2,"Banff Television Festival Foundation",Toronto,Ontario,Canada,"BANFF World Media Festival 2018",,,2018-07-18,99000.00,99000.00,Contribution,"Promotion Program",
2018-2019,P1,"Atlantic Film Festival Association",Halifax,"Nova Scotia",Canada,"FIN-Atlantic International Film Festival and Partners Conf",,,2018-06-11,192631.00,192631.00,Contribution,"Promotion Program",
2018-2019,P2,"Devonshire Productions Inc.",Toronto,Ontario,Canada,"Coproduction market - no specific project",English,,2018-07-11,1500.00,1500.00,Contribution,"International Marketing Program",
2018-2019,P1,"DOC Talks Festival & Symposium Inc.",Fredericton,"New Brunswick",Canada,"DOCTalks Festival & Symposium",,,2018-06-25,5000.00,5000.00,Contribution,"Promotion Program",
2018-2019,P1,"Fondation Qu�bec cin�ma",Montreal,Quebec,Canada,"Gala Qu�bec Cin�ma",,,2018-06-27,302144.00,302144.00,Contribution,"Promotion Program",
2018-2019,P3,"Fondation Qu�bec cin�ma",Montreal,Quebec,Canada,"Gala Qu�bec Cin�ma",,,2018-11-26,502144.00,302144.00,Contribution,"Promotion Program","Amended Contract Signed 27-Jun-2018"
2018-2019,P2,"PVM Productions Inc.",Toronto,Ontario,Canada,"Percy Versus Monsanto",English,Drama,2018-09-21,2500000.00,2500000.00,Investment,"Production Program",
2018-2019,P2,"Devonshire Productions Inc.",Toronto,Ontario,Canada,"Indian Horse",English,Drama,2018-07-11,1500.00,1500.00,Contribution,"International Marketing Program",
2018-2019,P3,"R�alisatrices �quitables",Montreal,Quebec,Canada,"Cin�-club Les Dames des vues",,,2018-11-18,10000.00,10000.00,Contribution,"Promotion Program",
2018-2019,P2,"Short Stop Pictures XI Ltd.",Halifax,"Nova Scotia",Canada,"Short Film Face Off 2018",,,2018-08-03,37500.00,37500.00,Contribution,"Promotion Program",
2018-2019,P2,"Motion Picture Theatre Associations Of Canada / Associations des cin�mas du Canada",Toronto,Ontario,Canada,ShowCanada,,,2018-07-11,12500.00,12500.00,Contribution,"Promotion Program",
2018-2019,P3,"Hot Docs",Toronto,Ontario,Canada,"Hot Docs Festival and Market",,,2018-11-05,350000.00,350000.00,Contribution,"Promotion Program",
2018-2019,P1,"Canada Wild Productions Ltd.",Vancouver,"British Columbia",Canada,"Koneline:  our land beautiful",English,Documentary,2018-06-11,1500.00,1500.00,Contribution,"International Marketing Program",
2018-2019,P3,"Guest of Honour Films Inc.",Toronto,Ontario,Canada,"Guest of Honour",English,Drama,2018-10-29,2000000.00,2000000.00,Investment,"Production Program",
2018-2019,P2,"The Centre for Aboriginal Media (Ontario)",Toronto,Ontario,Canada,"imagineNATIVE Film + Media Arts Festival",,,2018-07-30,51223.00,51223.00,Contribution,"Promotion Program",
2018-2019,P2,"Interactive Ontario Industry Association",Toronto,Ontario,Canada,"Interactive Ontario Professional Development Initiatives",,,2018-07-18,20000.00,20000.00,Contribution,"Promotion Program",
2018-2019,P2,"Entertainment One Films Canada Inc.",Toronto,Ontario,Canada,Birthmarked,English,,2018-08-14,34659.00,34659.00,Advance,"Marketing Program",
2018-2019,P4,"Entertainment One Films Canada Inc.",Toronto,Ontario,Canada,Birthmarked,English,,2019-02-19,31846.00,34659.00,Advance,"Marketing Program","Amended Contract Signed 14-Aug-2018"
2018-2019,P2,"Women In Film and Television - Atlantic",Halifax,"Nova Scotia",Canada,"Women Making Waves Conference",,,2018-07-11,5000.00,5000.00,Contribution,"Promotion Program",
2018-2019,P2,"Slow Motion Food Film Fest Society",Wolfville,"Nova Scotia",Canada,"Devour! The Food Film Fest",,,2018-07-16,7500.00,7500.00,Contribution,"Promotion Program",
2018-2019,P4,"673709 NB Inc.",Moncton,"New Brunswick",Canada,"Mr. Freeze et Allumette",French,Action/Adventure,2019-03-28,500000.00,500000.00,Contribution,"Production Program",
2018-2019,P2,"Second Sight Pictures Inc.",Montreal,Quebec,Canada,Cielo,English,Documentary,2018-09-26,1500.00,1500.00,Contribution,"International Marketing Program",
2018-2019,P4,"Uncle Bob Films Ltd.","Rose Bay","Nova Scotia",Canada,"A Killing in the Woods",English,Thriller,2019-03-28,250000.00,250000.00,Investment,"Production Program",
2018-2019,P2,"Item 7 Inc.",Montreal,Quebec,Canada,"Nous sommes les autres",French,Drama,2018-09-18,1700.00,1700.00,Contribution,"International Marketing Program",
2018-2019,P1,"Hot Docs",Toronto,Ontario,Canada,"Learning from Documentary Audiences 2.0",,,2018-06-21,15000.00,15000.00,Contribution,"Promotion Program",
2018-2019,P2,"Festival de Cin�ma de la Ville de Qu�bec",Qu�bec,Quebec,Canada,"Festival de cin�ma de la ville de Qu�bec 2018",,,2018-08-21,45204.00,45204.00,Contribution,"Promotion Program",
2018-2019,P3,"9378-3504 Qu�bec inc.",Montreal,Quebec,Canada,"Tu te souviendras de moi",French,Drama,2018-10-04,1725000.00,1725000.00,Investment,"Production Program",
2018-2019,P1,"Cin�fest: The Sudbury Film Festival Inc.",Sudbury,Ontario,Canada,"Cinefest Sudbury International Film Festival",,,2018-06-18,59483.00,59483.00,Contribution,"Promotion Program",
2018-2019,P3,"Film Zone Inc.",Moncton,"New Brunswick",Canada,"Festival international du cin�ma francophone en Acadie",,,2018-11-07,52808.00,52808.00,Contribution,"Promotion Program",
2018-2019,P2,"9342-5809 Qu�bec Inc.",Montreal,Quebec,Canada,"Les faux tatouages",French,"Romantic Comedy",2018-09-12,19071.00,19071.00,Contribution,"Production Program",
2018-2019,P3,"Eye Steel Film Distribution inc.",Montreal,Quebec,Canada,"Anote's Ark",English,Documentary,2018-11-28,31000.00,31000.00,Advance,"Marketing Program",
2018-2019,P3,"Process Entertainment Inc.",Toronto,Ontario,Canada,S.O.S.,English,,2018-10-15,1500.00,1500.00,Contribution,"International Marketing Program",
2018-2019,P2,"Open Roof Films Entertainment Inc.",Toronto,Ontario,Canada,"Open Roof Festival",,,2018-07-10,20000.00,20000.00,Contribution,"Promotion Program",
2018-2019,P4,"What Walaa Wants Productions Inc.",Toronto,Ontario,Canada,"What Walaa Wants",English,,2019-03-29,500.00,500.00,Contribution,"International Marketing Program",
2018-2019,P2,"The Vancouver Out On Screen Film and Video Society",Vancouver,"British Columbia",Canada,"The Vancouver Queer Film Festival",,,2018-07-05,5000.00,5000.00,Contribution,"Promotion Program",
2018-2019,P2,"Women In Film & Television Toronto",Toronto,Ontario,Canada,"WIFT-T Membership Mentorship Program (WIFT Connect)",,,2018-08-07,20000.00,20000.00,Contribution,"Promotion Program",
2018-2019,P4,"What Walaa Wants Productions Inc.",Toronto,Ontario,Canada,"What Walaa Wants",English,,2019-03-29,1500.00,1500.00,Contribution,"International Marketing Program",
2018-2019,P1,"Greater Vancouver International Film Festival Society",Vancouver,"British Columbia",Canada,"Vancouver International Film Festival",,,2018-06-25,242172.00,242172.00,Contribution,"Promotion Program",
2018-2019,P2,"Association des propri�taires de cin�mas du Qu�bec",Montreal,Quebec,Canada,"APCQ - Souper annuel",,,2018-08-24,5000.00,5000.00,Contribution,"Promotion Program",
2018-2019,P2,"Blue Goat Films Inc.",Calgary,Alberta,Canada,"Little Wisdom (A)",English,Drama,2018-07-13,10000.00,10000.00,Contribution,"International Marketing Program",
2018-2019,P2,"Blue Goat Films Inc.",Calgary,Alberta,Canada,"Little Wisdom (A)",English,Drama,2018-07-13,1500.00,1500.00,Contribution,"International Marketing Program",
2018-2019,P2,"Toronto Reel Asian International Film Festival",Toronto,Ontario,Canada,"2018 Toronto Reel Asian International Film Festival",,,2018-07-12,27978.00,27978.00,Contribution,"Promotion Program",
2018-2019,P2,"A71 Productions Inc.",Toronto,Ontario,Canada,"Canadian Indie Film Series 2018-2019",,,2018-07-11,25000.00,25000.00,Contribution,"Promotion Program",
2018-2019,P2,"Edmonton International Film Festival Society",Edmonton,Alberta,Canada,"Edmonton International Film Festival",,,2018-07-23,26170.00,26170.00,Contribution,"Promotion Program",
2018-2019,P2,"2053152 Ontario Inc. dba LA Coles Fine Art Films",Woodbridge,Ontario,Canada,"Melody Makers",English,,2018-08-21,25000.00,25000.00,Advance,"Marketing Program",
2018-2019,P2,"Films S�ville Inc. (Les)",Montreal,Quebec,Canada,"La disparition des lucioles",French,Drama,2018-08-17,3200.00,3200.00,Contribution,"International Marketing Program",
2018-2019,P1,"Western Arctic Moving Pictures",Yellowknife,"North West Territories",Canada,"The Yellowknife International Film Festival",,,2018-06-26,5000.00,5000.00,Contribution,"Promotion Program",
2018-2019,P3,"Canadian Film Institute",Ottawa,Ontario,Canada,"The Ottawa International Animation Festival",,,2018-10-26,44002.00,44002.00,Contribution,"Promotion Program",
2018-2019,P2,"Fred Fitzell Films Inc.",Toronto,Ontario,Canada,"The Education of Fredrick Fitzell",English,"Science fiction/Fantasy/Tale",2018-09-12,1800000.00,1800000.00,Investment,"Production Program",
2018-2019,P1,"Canadian Film in the Schools",Toronto,Ontario,Canada,"Canadian Film in the Schools-National Canadian Film Day",,,2018-06-13,154113.00,154113.00,Contribution,"Promotion Program",
2018-2019,P4,"Canadian Film in the Schools",Toronto,Ontario,Canada,"Canadian Film in the Schools-National Canadian Film Day",,,2019-02-19,229113.00,154113.00,Contribution,"Promotion Program","Amended Contract Signed 13-Jun-2018"
2018-2019,P2,"Caribbean Tales",Toronto,Ontario,Canada,"CaribbeanTales Film Festival  + Incubator + CineFam",,,2018-08-23,28000.00,28000.00,Contribution,"Promotion Program",
2018-2019,P2,"Yorkton Short Film and Video Festival Inc.",Yorkton,Saskatchewan,Canada,"Yorkton Film Festival",,,2018-07-19,22045.00,22045.00,Contribution,"Promotion Program",
2018-2019,P2,"Female Eye Film Festival (The)",Woodbridge,Ontario,Canada,"The Female Eye Film Festival",,,2018-08-02,5000.00,5000.00,Contribution,"Promotion Program",
2018-2019,P2,"FILMS LES N�TRES INC.",Montreal,Quebec,Canada,"Les n�tres",French,Drama,2018-07-19,500000.00,500000.00,Investment,"Production Program",
2018-2019,P2,"Rencontres internationales du documentaire de Montr�al",Montreal,Quebec,Canada,"Rencontres internationales du documentaire de Montr�al",,,2018-09-28,90330.00,90330.00,Contribution,"Promotion Program",
2018-2019,P3,"Pixel Qu�bec",Qu�bec,Quebec,Canada,"Cartoon Connection 2018",,,2018-10-19,40000.00,40000.00,Contribution,"Promotion Program",
2018-2019,P3,"Level Film Inc.",Toronto,Ontario,Canada,"Octavio is Dead!",English,,2018-10-04,23265.00,23265.00,Advance,"Marketing Program",
2018-2019,P3,"Level Film Inc.",Toronto,Ontario,Canada,"Octavio is Dead!",English,,2018-12-20,17663.00,23265.00,Advance,"Marketing Program","Amended Contract Signed 04-Oct-2018"
2018-2019,P2,"Rodeo Queen Pictures Inc.",Vancouver,"British Columbia",Canada,"The Gideon Girls",English,Drama,2018-08-02,15000.00,15000.00,Advance,"Development Program",
2018-2019,P2,"Rock Island Productions Ltd.","St. John's",Newfoundland/Labrador,Canada,"Game On",English,Drama,2018-08-08,15000.00,15000.00,Advance,"Development Program",
2018-2019,P2,"Festina Lente Productions Inc.",Chester,"Nova Scotia",Canada,"In The Cage",English,Drama,2018-08-01,15000.00,15000.00,Advance,"Development Program",
2018-2019,P2,"Rob Heydon Holdings Inc.","Stoney Creek",Ontario,Canada,"Immortal Rules",English,Action/Adventure,2018-08-02,15000.00,15000.00,Advance,"Development Program",
2018-2019,P2,"Carrousel international du film de Rimouski (Le)",Rimouski,Quebec,Canada,"Carrousel international du film de Rimouski",,,2018-09-18,25152.00,25152.00,Contribution,"Promotion Program",
2018-2019,P2,"Productrices Associ�es KVNB Inc.",Montreal,Quebec,Canada,MARIA,French,Comedy,2018-08-29,15000.00,15000.00,Advance,"Development Program",
2018-2019,P2,"Productrices Associ�es KVNB Inc.",Montreal,Quebec,Canada,"LES D�PUT�S",French,"Romantic Comedy",2018-08-29,20000.00,20000.00,Advance,"Development Program",
2018-2019,P2,"Interstate 80 Entertainment Inc.",Calgary,Alberta,Canada,"The Garden",English,"Science fiction/Fantasy/Tale",2018-08-01,15000.00,15000.00,Advance,"Development Program",
2018-2019,P2,"Carbon Arc Cinema Co-op Ltd.",Dartmouth,"Nova Scotia",Canada,"Animation Festival of Halifax",,,2018-08-27,2500.00,2500.00,Contribution,"Promotion Program",
2018-2019,P2,"9097-4767 Qu�bec Inc.",Montreal,Quebec,Canada,"Hors Piste",French,Horror,2018-07-31,15000.00,15000.00,Advance,"Development Program",
2018-2019,P2,"ReelWorld Film Festival Inc.",Toronto,Ontario,Canada,"Reelworld Film Festival and Impact Lounge",,,2018-09-25,43021.00,43021.00,Contribution,"Promotion Program",
2018-2019,P2,"Maison 4:3 Inc.",Montreal,Quebec,Canada,"QUAND LES POUVOIRS S'EMM�LENT",French,,2018-09-18,35000.00,35000.00,Advance,"Marketing Program",
2018-2019,P2,"Canadian Media Producers Association",Ottawa,Ontario,Canada,"Case Studies on the Local Economic Impact of Feature Films",,,2018-07-30,15000.00,15000.00,Contribution,"Promotion Program",
2018-2019,P2,"L'Oeil Fou inc.",Montreal,Quebec,Canada,"Pervers ordinaire",French,Mystery/Crime/Police,2018-08-29,25000.00,25000.00,Advance,"Marketing Program",
2018-2019,P4,"L'Oeil Fou inc.",Montreal,Quebec,Canada,"Pervers ordinaire",French,Mystery/Crime/Police,2019-01-23,17756.00,25000.00,Advance,"Marketing Program","Amended Contract Signed 29-Aug-2018"
2018-2019,P2,"Go Films L.P.R.S. Inc.",Montreal,Quebec,Canada,"CHIEN BLANC",French,Drama,2018-08-29,52000.00,52000.00,Advance,"Development Program",
2018-2019,P2,"Go Films L.P.R.S. Inc.",Montreal,Quebec,Canada,"LE PLONGEUR",French,Drama,2018-08-29,38000.00,38000.00,Advance,"Development Program",
2018-2019,P3,"Cin�math�que Qu�b�coise",Montreal,Quebec,Canada,"Les Sommets du cin�ma d'animation",,,2018-10-23,10000.00,10000.00,Contribution,"Promotion Program",
2018-2019,P2,"Random Act Productions Inc.",Toronto,Ontario,Canada,"Random Acts of Violence",English,Horror,2018-08-21,1665000.00,1665000.00,Investment,"Production Program",
2018-2019,P3,"New Real Films Inc.",Toronto,Ontario,Canada,Kipkemboi,English,Drama,2018-11-15,20000.00,20000.00,Advance,"Development Program",
2018-2019,P2,"Second Sight Pictures Inc.",Montreal,Quebec,Canada,Cielo,English,,2018-09-06,17500.00,17500.00,Advance,"Marketing Program",
2018-2019,P2,"Island Media Arts Co-Operative Limited",Charlottetown,"Prince Edward Island",Canada,"Film 4Ward",,,2018-07-13,15000.00,15000.00,Contribution,"Promotion Program",
2018-2019,P2,"Productions Sc�nat de L'Abitibi-Temiscamingue",Rouyn-Noranda,Quebec,Canada,"Festival Cin�ma Int Abitibi-T�miscamingue Rouyn-Noranda",,,2018-07-13,62082.00,62082.00,Contribution,"Promotion Program",
2018-2019,P2,"Transmar Films Inc.",Montreal,Quebec,Canada,"Le Cheval bl�me",French,Drama,2018-07-11,15000.00,15000.00,Advance,"Development Program",
2018-2019,P2,"La Bo�te � Fanny inc.",Montreal,Quebec,Canada,"L'Enfant Mascara",French,Drama,2018-07-09,15000.00,15000.00,Advance,"Development Program",
2018-2019,P2,"La Bo�te � Fanny inc.",Montreal,Quebec,Canada,"Objet Volant Non Identifi�",French,Drama,2018-07-09,15000.00,15000.00,Advance,"Development Program",
2018-2019,P3,"Maison 4:3 Inc.",Montreal,Quebec,Canada,Pachamama,French,,2018-12-18,75000.00,75000.00,Advance,"Marketing Program",
2018-2019,P3,"Farpoint Films Inc.",Winnipeg,Manitoba,Canada,"An Accident of Time and Place",English,Drama,2018-12-13,15000.00,15000.00,Advance,"Development Program",
2018-2019,P3,"Farpoint Films Inc.",Winnipeg,Manitoba,Canada,Wintertide,English,Horror,2018-12-13,15000.00,15000.00,Advance,"Development Program",
2018-2019,P3,"Jane Losa Films Inc.",Montreal,Quebec,Canada,"AVEC MAX (Aka Get lost with Max)",French,Drama,2018-12-18,15000.00,15000.00,Advance,"Development Program",
2018-2019,P2,"Ontario Media Development Corporation (OMDC) / Soci�t� de d�veloppement de l'industrie cin�matographique ontarienne",Toronto,Ontario,Canada,"International Financing Forum (iff) 2018",,,2018-08-23,18600.00,18600.00,Contribution,"Promotion Program",
2018-2019,P2,"Parce Que Films inc.",Montreal,Quebec,Canada,"Cent mille Sandre",French,"Science fiction/Fantasy/Tale",2018-09-26,15000.00,15000.00,Advance,"Development Program",
2018-2019,P2,"Prix coll�gial du cin�ma qu�b�cois",Montreal,Quebec,Canada,"Prix coll�gial du cin�ma qu�b�cois 2018-2019",,,2018-09-22,20000.00,20000.00,Contribution,"Promotion Program",
2018-2019,P2,Cin�franco,Toronto,Ontario,Canada,Cin�franco,,,2018-07-11,10815.00,10815.00,Contribution,"Promotion Program",
2018-2019,P2,"Marina Cordoni Entertainment Inc.",Toronto,Ontario,Canada,"Never Saw It Coming",English,,2018-08-21,34072.00,34072.00,Advance,"Marketing Program",
2018-2019,P2,"Experimental Forest Films Inc.",Vancouver,"British Columbia",Canada,Inedia,English,Drama,2018-08-13,15000.00,15000.00,Advance,"Development Program",
2018-2019,P2,"Festival du nouveau cin�ma de Montr�al",Montreal,Quebec,Canada,"Festival du nouveau cin�ma",,,2018-09-11,183031.00,183031.00,Contribution,"Promotion Program",
2018-2019,P2,"Coop Vid�o de Montr�al",Montreal,Quebec,Canada,"6 accidents",French,Drama,2018-08-22,55000.00,55000.00,Advance,"Development Program",
2018-2019,P2,"Independent Edge Films Inc.",Vancouver,"British Columbia",Canada,"North of Normal",English,Drama,2018-08-03,20000.00,20000.00,Advance,"Development Program",
2018-2019,P3,"Raven Banner Releasing Inc.",Toronto,Ontario,Canada,Knuckleball,English,,2018-10-02,54037.00,54037.00,Advance,"Marketing Program",
2018-2019,P2,"G.P.A. Films Inc.",Longueuil,Quebec,Canada,"Seule au front",French,Drama,2018-08-21,15000.00,15000.00,Advance,"Development Program",
2018-2019,P2,"g11c inc.",Montreal,Quebec,Canada,"le bruit des moteurs",French,Drama,2018-09-11,125000.00,125000.00,Contribution,"Talent To Watch Program",
2018-2019,P2,"9381-2618 Qu�bec Inc.",Montreal,Quebec,Canada,"VIVRE  100 mph",French,Drama,2018-08-15,1500000.00,1500000.00,Investment,"Production Program",
2018-2019,P2,"Association des cin�mas parall�les du Qu�bec",Montreal,Quebec,Canada,"ACPQ R�seau Plus 2018-2019",,,2018-08-29,102743.00,102743.00,Contribution,"Promotion Program",
2018-2019,P2,"Raven West Films Ltd.",Vancouver,"British Columbia",Canada,"Winter Camping",English,Drama,2018-08-03,15000.00,15000.00,Advance,"Development Program",
2018-2019,P2,"Crazy8s Film Society",Vancouver,"British Columbia",Canada,"Crazy8s 2019",,,2018-07-25,20000.00,20000.00,Contribution,"Promotion Program",
2018-2019,P2,"January Films Ltd.",Toronto,Ontario,Canada,CHARLOTTE,English,"Historical Drama",2018-07-24,200000.00,200000.00,Advance,"Production Program",
2018-2019,P4,"January Films Ltd.",Toronto,Ontario,Canada,CHARLOTTE,English,"Historical Drama",2019-01-16,0.00,200000.00,Advance,"Production Program","Amended Contract Signed 24-Jul-2018"
2018-2019,P4,"January Films Ltd.",Toronto,Ontario,Canada,CHARLOTTE,English,"Historical Drama",2019-01-16,200000.00,0.00,Investment,"Production Program","Amended Contract Signed 24-Jul-2018"
2018-2019,P2,"Les Films Denali Inc.",Montreal,Quebec,Canada,"Femmes au sommet",French,Documentary,2018-09-20,125000.00,125000.00,Contribution,"Talent To Watch Program",
2018-2019,P3,"Little Bear Productions Inc.",Fredericton,"New Brunswick",Canada,"Queen of the Andes",English,"Science fiction/Fantasy/Tale",2018-11-08,125000.00,125000.00,Contribution,"Talent To Watch Program",
2018-2019,P3,"Picture Plant Limited",Lunenburg,"Nova Scotia",Canada,"HAPPY CLEAN",English,Action/Adventure,2018-11-20,15000.00,15000.00,Advance,"Development Program",
2018-2019,P3,"Picture Plant Limited",Lunenburg,"Nova Scotia",Canada,BYSTANDERS,English,Drama,2018-11-20,15000.00,15000.00,Advance,"Development Program",
2018-2019,P3,"Picture Plant Limited",Lunenburg,"Nova Scotia",Canada,"DAWN, HER DAD AND THE TRACTOR",English,Drama,2018-11-20,15000.00,15000.00,Advance,"Development Program",
2018-2019,P3,"Picture Plant Limited",Lunenburg,"Nova Scotia",Canada,"THE APARTMENT",English,Horror,2018-11-20,15000.00,15000.00,Advance,"Development Program",
2018-2019,P4,"Toronto International Film Festival Inc.",Toronto,Ontario,Canada,"Toronto International Film Festival",,,2019-02-21,992710.00,992710.00,Contribution,"Promotion Program",
2018-2019,P2,"Lowenbe Holdings Ltd.","Glen Haven","Nova Scotia",Canada,"Trans Atlantic Partners 2018",,,2018-09-21,25000.00,25000.00,Contribution,"Promotion Program",
2018-2019,P2,"Festival Fantasia",Montreal,Quebec,Canada,"Festival Fantasia incluant Fronti�res",,,2018-08-06,223719.00,223719.00,Contribution,"Promotion Program",
2018-2019,P3,"Festival Fantasia",Montreal,Quebec,Canada,"Festival Fantasia incluant Fronti�res",,,2018-12-10,228719.00,223719.00,Contribution,"Promotion Program","Amended Contract Signed 06-Aug-2018"
2018-2019,P3,"2644914 Ontario Inc.",Toronto,Ontario,Canada,"Gay Mean Girls: The Web series",English,Drama,2018-10-01,125000.00,125000.00,Contribution,"Talent To Watch Program",
2018-2019,P2,"Vortex Comics Incorporated",Toronto,Ontario,Canada,"Gin and Rot",English,Drama,2018-08-13,15000.00,15000.00,Advance,"Development Program",
2018-2019,P2,"J2DM Management Inc.",Toronto,Ontario,Canada,LOWLIFE,English,Drama,2018-08-09,15000.00,15000.00,Advance,"Development Program",
2018-2019,P2,"P�riph�ria Films Inc",Montreal,Quebec,Canada,"Coproduction market - no specific project",English,,2018-08-17,1500.00,1500.00,Contribution,"International Marketing Program",
2018-2019,P3,"9381-4911 Qu�bec inc.",Boisbriand,Quebec,Canada,"La Marina",French,Comedy,2018-11-13,125000.00,125000.00,Contribution,"Talent To Watch Program",
2018-2019,P2,"Canop�e productions 1 Inc.",Chicoutimi,Quebec,Canada,"Les Libres",French,Documentary,2018-09-10,125000.00,125000.00,Contribution,"Talent To Watch Program",
2018-2019,P3,"Chemin�e Deux Inc.",Laval,Quebec,Canada,"Une forteresse",French,,2018-11-07,1700.00,1700.00,Contribution,"International Marketing Program",
2018-2019,P2,"Newton's Cradle Ltd.",Toronto,Ontario,Canada,"Loretta's Flowers",English,Drama,2018-09-19,1500.00,1500.00,Contribution,"International Marketing Program",
2018-2019,P2,"9219-3010 Qu�bec Inc.",Montreal,Quebec,Canada,"Jusqu'� la fin / A moment of pure joy",English,Comedy,2018-08-15,1500.00,1500.00,Contribution,"International Marketing Program",
2018-2019,P2,"9361-4378 Qu�bec inc.",Montreal,Quebec,Canada,Gen�se,French,Drama,2018-09-24,10000.00,10000.00,Contribution,"International Marketing Program",
2018-2019,P3,"Les Productions du Cerf-Volant Inc.",Sherbrooke,Quebec,Canada,"Portfolio | Portefeuille 2018-2019 Les Productions du Cerf-Volant Inc.",French,,2018-12-17,15000.00,15000.00,Advance,"Development Program",
2018-2019,P3,"Les Productions du Cerf-Volant Inc.",Sherbrooke,Quebec,Canada,"No�l des Anges",French,Drama,2018-12-17,15000.00,15000.00,Advance,"Development Program",
2018-2019,P2,"Trailer Park Productions Limited",Halifax,"Nova Scotia",Canada,"Best Christmas Ever",English,Comedy,2018-08-29,37500.00,37500.00,Advance,"Development Program",
2018-2019,P2,"Trailer Park Productions Limited",Halifax,"Nova Scotia",Canada,"Three Schizophrenics Walk Out Of A Bar",English,Drama,2018-08-29,37500.00,37500.00,Advance,"Development Program",
2018-2019,P2,"Calgary International Film Festival Society",Calgary,Alberta,Canada,"Calgary International Film Festival",,,2018-07-31,42038.00,42038.00,Contribution,"Promotion Program",
2018-2019,P2,"The Centre for Aboriginal Media (Ontario)",Toronto,Ontario,Canada,"Indigenous Screen: International Strategy for Collab/Growth",,,2018-08-20,18000.00,18000.00,Contribution,"Promotion Program",
2018-2019,P4,"Bad Bannock Productions Inc.",Cawston,"British Columbia",Canada,"The Bannocking",English,Horror,2019-01-29,125000.00,125000.00,Contribution,"Talent To Watch Program",
2018-2019,P3,"Cin�mental inc.",Winnipeg,Manitoba,Canada,"Cin�mental 2018",,,2018-10-23,4046.00,4046.00,Contribution,"Promotion Program",
2018-2019,P2,"Resonance Films Inc.",Vancouver,"British Columbia",Canada,FATHERMUCKER,English,Comedy,2018-08-09,15000.00,15000.00,Advance,"Development Program",
2018-2019,P3,"C&Y Cinema Ltd.",Toronto,Ontario,Canada,"Veslemoy's Song",English,,2018-12-11,1700.00,1700.00,Contribution,"International Marketing Program",
2018-2019,P2,"Wreckhouse Productions Inc.","St. John's",Newfoundland/Labrador,Canada,Druken,English,Drama,2018-08-29,15000.00,15000.00,Advance,"Development Program",
2018-2019,P2,"Scythia Films Inc.",Toronto,Ontario,Canada,"Percy Versus Monsanto",English,Drama,2018-07-30,250000.00,250000.00,Advance,"Production Program",
2018-2019,P2,"Scythia Films Inc.",Toronto,Ontario,Canada,"Percy Versus Monsanto",English,Drama,2018-09-26,0.00,250000.00,Advance,"Production Program","Amended Contract Signed 30-Jul-2018"
2018-2019,P2,"Scythia Films Inc.",Toronto,Ontario,Canada,"Percy Versus Monsanto",English,Drama,2018-09-26,250000.00,0.00,Investment,"Production Program","Amended Contract Signed 30-Jul-2018"
2018-2019,P2,"Academy Of Canadian Cinema And Television - Acad�mie Canadienne du Cin�ma et de la T�l�vision",Toronto,Ontario,Canada,"Canadian Screen Awards",,,2018-07-25,360511.00,360511.00,Contribution,"Promotion Program",
2018-2019,P3,"Festival du film de l'Outaouais",Montreal,Quebec,Canada,"Festival du film de l'Outaouais",,,2018-12-17,21069.00,21069.00,Contribution,"Promotion Program",
2018-2019,P3,"KRH film Inc.",Montreal,Quebec,Canada,Touched,English,,2018-10-17,30000.00,30000.00,Advance,"Marketing Program",
2018-2019,P2,"Films 53/12 Inc.",Montreal,Quebec,Canada,Mer,French,Drama,2018-08-23,15000.00,15000.00,Advance,"Development Program",
2018-2019,P3,"9381-3699 Quebec Inc.",Montreal,Quebec,Canada,"Moment One",English,"Science fiction/Fantasy/Tale",2018-11-30,125000.00,125000.00,Contribution,"Talent To Watch Program",
2018-2019,P2,"ORGANISATION COMMUNICATIONS ET SOCI�T� OCS INC.",Montreal,Quebec,Canada,Cin�cole,,,2018-09-11,20000.00,20000.00,Contribution,"Promotion Program",
2018-2019,P3,"Just Focus Films Inc.",Waterloo,Ontario,Canada,Qu�bexit,English,Comedy,2018-12-04,125000.00,125000.00,Contribution,"Talent To Watch Program",
2018-2019,P3,"Artemis Films Inc.",Montreal,Quebec,Canada,"The End of Wonderland (a.k.a. Tara)",English,Documentary,2018-10-31,125000.00,125000.00,Contribution,"Talent To Watch Program",
2018-2019,P3,"2664848 Ontario Inc.",Toronto,Ontario,Canada,"Le Corbeau",English,Action/Adventure,2018-12-06,125000.00,125000.00,Contribution,"Talent To Watch Program",
2018-2019,P3,"9377-3570 Qu�bec inc.",Montreal,Quebec,Canada,"Damascus Dreams",French,Documentary,2018-10-29,125000.00,125000.00,Contribution,"Talent To Watch Program",
2018-2019,P2,"Digital Interference Productions Inc.","Port McNeil","British Columbia",Canada,"What Keeps You Alive",English,,2018-09-27,1500.00,1500.00,Contribution,"International Marketing Program",
2018-2019,P2,"Banana-Moon Sky Films Inc.",Toronto,Ontario,Canada,"Feels Like You",English,Drama,2018-08-13,15000.00,15000.00,Advance,"Development Program",
2018-2019,P4,"2645442 ONTARIO INC.",Toronto,Ontario,Canada,Islands,English,Drama,2019-01-11,125000.00,125000.00,Contribution,"Talent To Watch Program",
2018-2019,P2,"Viddywell Films Inc.",Toronto,Ontario,Canada,"Lake on the Mountain",English,Thriller,2018-08-14,15000.00,15000.00,Advance,"Development Program",
2018-2019,P3,"DBD Productions Inc.",Regina,Saskatchewan,Canada,"Mercy (formerly Q)",English,Drama,2018-12-04,125000.00,125000.00,Contribution,"Talent To Watch Program",
2018-2019,P3,"2645850 ONTARIO INC.",Toronto,Ontario,Canada,Jump,English,Drama,2018-11-28,125000.00,125000.00,Contribution,"Talent To Watch Program",
2018-2019,P2,"Mouthpiece (FGM) Films Inc.",Toronto,Ontario,Canada,Mouthpiece,English,,2018-09-27,49518.00,49518.00,Advance,"Marketing Program",
2018-2019,P4,"Interwoven Films Inc",Halifax,"Nova Scotia",Canada,"Out of Patience (formerly Carecroft)",English,Drama,2019-01-03,125000.00,125000.00,Contribution,"Talent To Watch Program",
2018-2019,P4,"Scarab Films Inc.",Toronto,Ontario,Canada,Hate,English,Drama,2019-01-04,125000.00,125000.00,Contribution,"Talent To Watch Program",
2018-2019,P3,"1173166 B.C. Ltd.",Vancouver,"British Columbia",Canada,"Be Still",English,Drama,2018-11-26,125000.00,125000.00,Contribution,"Talent To Watch Program",
2018-2019,P3,"Isuma Distribution International Ltd.",Montreal,Quebec,Canada,"Edge of the Knife",English,,2018-12-17,180000.00,180000.00,Advance,"Marketing Program",
2018-2019,P4,"This Place Film Incorporated",Toronto,Ontario,Canada,"This Place",English,Drama,2019-01-09,125000.00,125000.00,Contribution,"Talent To Watch Program",
2018-2019,P3,"Bone Cage Productions Inc.",Williamswood,"Nova Scotia",Canada,"Bone Cage",English,Drama,2018-11-22,125000.00,125000.00,Contribution,"Talent To Watch Program",
2018-2019,P3,"There's No Place Like This Place Inc.",Toronto,Ontario,Canada,"There's No Place Like This Place, Anyplace",English,Documentary,2018-11-01,125000.00,125000.00,Contribution,"Talent To Watch Program",
2018-2019,P3,"Meilleur Avant Productions Inc.",Toronto,Ontario,Canada,"Meilleur avant",French,Comedy,2018-11-30,105000.00,105000.00,Contribution,"Talent To Watch Program",
2018-2019,P3,"Isuma Distribution International Ltd.",Montreal,Quebec,Canada,"Tia and Piujuq",English,,2018-12-17,180000.00,180000.00,Advance,"Marketing Program",
2018-2019,P3,"Festival Pleins �crans",Montreal,Quebec,Canada,"Festival Plein(s) �cran(s)",,,2018-12-21,20000.00,20000.00,Contribution,"Promotion Program",
2018-2019,P3,"TAK FILMS INC.",Montreal,Quebec,Canada,"Note de passage",French,Drama,2018-11-26,125000.00,125000.00,Contribution,"Talent To Watch Program",
2018-2019,P3,"Bleed With Me Film Inc.",Verdun,Quebec,Canada,"Bleed With Me",English,Thriller,2018-10-19,124923.00,124923.00,Contribution,"Talent To Watch Program",
2018-2019,P2,"Productions l'unit� centrale inc.",Montreal,Quebec,Canada,"Ville Neuve",French,Drama,2018-09-18,24500.00,24500.00,Contribution,"International Marketing Program",
2018-2019,P3,"2647287 Ontario Inc.",Toronto,Ontario,Canada,Scarborough,English,Drama,2018-10-02,125000.00,125000.00,Contribution,"Talent To Watch Program",
2018-2019,P3,"Funfilm Distribution Inc.",Montreal,Quebec,Canada,OSCILLATIONS,French,Drama,2018-12-17,13000.00,13000.00,Advance,"Marketing Program",
2018-2019,P3,"1UTT Productions Inc.",Toronto,Ontario,Canada,"Once Upon a Time in Tehranto",English,"Romantic Comedy",2018-10-25,125000.00,125000.00,Contribution,"Talent To Watch Program",
2018-2019,P3,"The Standard Model Inc.",Toronto,Ontario,Canada,"RIGHT BETWEEN THE EYES",English,Thriller,2018-12-17,125000.00,125000.00,Contribution,"Talent To Watch Program",
2018-2019,P4,"Village Keeper Inc.",Scarborough,Ontario,Canada,"Village Keeper",English,Drama,2019-01-14,125000.00,125000.00,Contribution,"Talent To Watch Program",
2018-2019,P2,"Compass Productions Inc.",Montreal,Quebec,Canada,Calorie,English,Drama,2018-08-02,1500.00,1500.00,Contribution,"International Marketing Program",
2018-2019,P3,"2129313 ALBERTA INC.",Calgary,Alberta,Canada,"Events Transpiring...",English,Comedy,2018-11-06,125000.00,125000.00,Contribution,"Talent To Watch Program",
2018-2019,P4,"World Beyond Pictures Ltd.",Victoria,"British Columbia",Canada,"ESLUNA: The World Beyond",English,"Science fiction/Fantasy/Tale",2019-03-19,125000.00,125000.00,Contribution,"Talent To Watch Program",
2018-2019,P3,"Shining Trauma Pictures Inc",Toronto,Ontario,Canada,"Spawn and Geezer",English,Documentary,2018-10-05,125000.00,125000.00,Contribution,"Talent To Watch Program",
2018-2019,P2,"Course Estrie",Sherbrooke,Quebec,Canada,"Course des R�gions pancanadienne (prix �mergent)",,,2018-08-29,40000.00,40000.00,Contribution,"Promotion Program",
2018-2019,P4,"2647886 Ontario Inc.",Toronto,Ontario,Canada,"40 Acres",English,Thriller,2019-02-12,125000.00,125000.00,Contribution,"Talent To Watch Program",
2018-2019,P3,"Houseplant Films Inc.",Darmouth,"Nova Scotia",Canada,Murmur,English,Drama,2018-10-19,125000.00,125000.00,Contribution,"Talent To Watch Program",
2018-2019,P3,"Songs She Sings in Shadows Inc.",Toronto,Ontario,Canada,"Songs She Sings in Shadows",English,Documentary,2018-10-25,125000.00,125000.00,Contribution,"Talent To Watch Program",
2018-2019,P4,"Stanleyville Inc.",Toronto,Ontario,Canada,Stanleyville,English,Comedy,2019-01-09,125000.00,125000.00,Contribution,"Talent To Watch Program",
2018-2019,P3,"Orange M�dias Inc.",Rosem�re,Quebec,Canada,"Le Boss des b�cosses",French,Comedy,2018-12-17,25000.00,25000.00,Advance,"Development Program",
2018-2019,P3,"Orange M�dias Inc.",Rosem�re,Quebec,Canada,"Ni Nonne ni pute",French,"Historical Drama",2018-12-17,15000.00,15000.00,Advance,"Development Program",
2018-2019,P3,"LTS Film Inc.",Toronto,Ontario,Canada,"Learn to Swim",English,Drama,2018-12-21,125000.00,125000.00,Contribution,"Talent To Watch Program",
2018-2019,P3,"2033161 Ontario Limited",Toronto,Ontario,Canada,"Carmine Street Guitars",English,,2018-10-31,25000.00,25000.00,Contribution,"International Marketing Program",
2018-2019,P2,"Rob Heydon Holdings Inc.","Stoney Creek",Ontario,Canada,ISABELLE,English,Drama,2018-09-27,10000.00,10000.00,Contribution,"International Marketing Program",
2018-2019,P3,"10022390 Manitoba Ltd.",Winnipeg,Manitoba,Canada,Billy,English,Thriller,2018-12-03,125000.00,125000.00,Contribution,"Talent To Watch Program",
2018-2019,P3,"Nice Is Cool Films Inc.",Toronto,Ontario,Canada,Worms,English,Comedy,2018-10-17,125000.00,125000.00,Contribution,"Talent To Watch Program",
2018-2019,P2,"Productions Testa inc.",Toronto,Ontario,Canada,"For�ts urbaines: une planche de salut",French,Documentary,2018-08-23,15000.00,15000.00,Advance,"Development Program",
2018-2019,P2,"9382-3052 Qu�bec inc.",Montreal,Quebec,Canada,Cimes,French,Drama,2018-09-26,125000.00,125000.00,Contribution,"Talent To Watch Program",
2018-2019,P3,"Easy Land Pictures Corporation",Toronto,Ontario,Canada,Easyland,English,Drama,2018-10-15,125000.00,125000.00,Contribution,"Talent To Watch Program",
2018-2019,P4,"Imagine That Productions Inc.",Paradise,Newfoundland/Labrador,Canada,"Little Orphans",English,Drama,2019-01-08,125000.00,125000.00,Contribution,"Talent To Watch Program",
2018-2019,P3,"Blue Lake Films Ltd.",Victoria,"British Columbia",Canada,"All-In Madonna",English,Drama,2018-12-05,125000.00,125000.00,Contribution,"Talent To Watch Program",
2018-2019,P3,"2033161 Ontario Limited",Toronto,Ontario,Canada,"Carmine Street Guitars",English,,2018-12-04,1500.00,1500.00,Contribution,"International Marketing Program",
2018-2019,P4,"Intuitive Pictures Inc.",Montreal,Quebec,Canada,Gift,English,Documentary,2019-02-06,20265.00,20265.00,Advance,"Marketing Program",
2018-2019,P3,"Intuitive Pictures Inc.",Montreal,Quebec,Canada,"The Oslo Diaries",English,Documentary,2018-10-12,19923.00,19923.00,Advance,"Marketing Program",
2018-2019,P2,"Amerique Film Inc.",Montreal,Quebec,Canada,Baby-sitter,French,Comedy,2018-08-24,1500.00,1500.00,Contribution,"International Marketing Program",
2018-2019,P2,"1976 Productions Inc.",Montreal,Quebec,Canada,Saint-Narcisse,English,"Romantic Comedy",2018-08-27,1500.00,1500.00,Contribution,"International Marketing Program",
2018-2019,P2,"MCP Productions Inc.",Montreal,Quebec,Canada,GRUNGE,French,Drama,2018-09-13,15000.00,15000.00,Advance,"Development Program",
2018-2019,P2,"MCP Productions Inc.",Montreal,Quebec,Canada,"LE MANEGE",French,Drama,2018-09-13,15000.00,15000.00,Advance,"Development Program",
2018-2019,P2,"Possibles M�dia inc.",Montreal,Quebec,Canada,"Le suicide d'Emma",French,Comedy,2018-08-27,6000.00,6000.00,Contribution,"International Marketing Program",
2018-2019,P3,"Possibles M�dia inc.",Montreal,Quebec,Canada,"Isle de Bois",French,Western,2018-10-04,1500.00,1500.00,Contribution,"International Marketing Program",
2018-2019,P2,"Les Perc�ides, Festival international de cin�ma et d'art de Perc�",Perce,Quebec,Canada,"Festival International de Cin�ma de Perc� - Les Perc�ides",,,2018-09-12,5408.00,5408.00,Contribution,"Promotion Program",
2018-2019,P3,"Echo Media Inc.",Montreal,Quebec,Canada,"Rois mongols (Les)",French,Drama,2018-11-05,1500.00,1500.00,Contribution,"International Marketing Program",
2018-2019,P2,"Bridge Film Productions Inc.",Toronto,Ontario,Canada,"Hugh Hefner's After Dark:  Speaking Out in America",English,Documentary,2018-09-11,8700.00,8700.00,Contribution,"International Marketing Program",
2018-2019,P3,"Lunenburg Doc Fest Association",Lunenburg,"Nova Scotia",Canada,"Lunenburg Doc Fest",,,2018-10-04,2500.00,2500.00,Contribution,"Promotion Program",
2018-2019,P3,"The Hunting Party Inc.",St-John's,Newfoundland/Labrador,Canada,"Incredible Violence",English,,2018-12-18,4500.00,4500.00,Contribution,"International Marketing Program",
2018-2019,P3,"Films Christal, s.e.c.(Les), agissant par l'interm�diaire de son commandit�, Les Films Christal Inc",Montreal,Quebec,Canada,"Dans la brume",French,,2018-11-21,135581.00,135581.00,Advance,"Marketing Program",
2018-2019,P2,"Random Act Productions Inc.",Toronto,Ontario,Canada,"Random Acts of Violence",English,Horror,2018-08-10,185000.00,185000.00,Advance,"Production Program",
2018-2019,P2,"Random Act Productions Inc.",Toronto,Ontario,Canada,"Random Acts of Violence",English,Horror,2018-08-22,0.00,185000.00,Advance,"Production Program","Amended Contract Signed 10-Aug-2018"
2018-2019,P2,"Random Act Productions Inc.",Toronto,Ontario,Canada,"Random Acts of Violence",English,Horror,2018-08-22,185000.00,0.00,Investment,"Production Program","Amended Contract Signed 10-Aug-2018"
2018-2019,P2,"3 Legged Dog Films Ltd.",Toronto,Ontario,Canada,"Sisters at the End",English,Thriller,2018-08-20,15000.00,15000.00,Advance,"Development Program",
2018-2019,P2,"Couronne Nord Gang Inc.",Montreal,Quebec,Canada,"Tr�s belle journ�e",French,Action/Adventure,2018-09-24,125000.00,125000.00,Contribution,"Talent To Watch Program",
2018-2019,P3,"Independent Edge Films Inc.",Vancouver,"British Columbia",Canada,"The New Romantic (formerly The Undergraduate)",English,Comedy,2018-10-31,1500.00,1500.00,Contribution,"International Marketing Program",
2018-2019,P3,"Solo Productions Inc.",Toronto,Ontario,Canada,"ARMSTRONGS WAR",English,Drama,2018-10-31,15000.00,15000.00,Advance,"Development Program",
2018-2019,P3,"Solo Productions Inc.",Toronto,Ontario,Canada,"On My Holy Mountain",English,Thriller,2018-10-31,20000.00,20000.00,Advance,"Development Program",
2018-2019,P3,"Lady Hammond Entertainment Inc.",Dartmouth,"Nova Scotia",Canada,"When The Saints",English,Drama,2018-11-23,15000.00,15000.00,Advance,"Development Program",
2018-2019,P3,"Lady Hammond Entertainment Inc.",Dartmouth,"Nova Scotia",Canada,Petropaths,English,"Science fiction/Fantasy/Tale",2018-11-23,15000.00,15000.00,Advance,"Development Program",
2018-2019,P2,"Whistler Film Festival Society",Whistler,"British Columbia",Canada,"Whistler Film Festival + Summit",,,2018-09-20,82853.00,82853.00,Contribution,"Promotion Program",
2018-2019,P2,"Hope of Glory Pictures Ltd.",Burnaby,"British Columbia",Canada,"Your Heart is The Size of Your Fist",English,Drama,2018-08-20,20000.00,20000.00,Advance,"Development Program",
2018-2019,P3,"Festival international du film pour enfants de Montr�al",Montreal,Quebec,Canada,"Festival International du Film pour Enfants de Montr�al",,,2018-10-23,16223.00,16223.00,Contribution,"Promotion Program",
2018-2019,P2,"Christie Street Creative Inc.","New Westminster","British Columbia",Canada,"Gone Grizzlies Gone",English,Documentary,2018-09-20,15000.00,15000.00,Advance,"Development Program",
2018-2019,P2,"Alyson Richards Productions Inc.",Hamilton,Ontario,Canada,"Mail Order Bride",English,"Romantic Comedy",2018-08-16,15000.00,15000.00,Advance,"Development Program",
2018-2019,P2,"Markham Street Films Inc.",Toronto,Ontario,Canada,"Heaven is Small",English,Comedy,2018-08-30,15000.00,15000.00,Advance,"Development Program",
2018-2019,P2,"Forum Films 2005 Inc.",Montreal,Quebec,Canada,"Pas d'chicane dans ma cabane",French,Comedy,2018-09-25,37647.00,37647.00,Advance,"Development Program",
2018-2019,P2,"Forum Films 2005 Inc.",Montreal,Quebec,Canada,"Gabriel et le chien",French,"Historical Drama",2018-09-25,21632.00,21632.00,Advance,"Development Program",
2018-2019,P3,"Ruthless Souls Film Inc",Winnipeg,Manitoba,Canada,"Ruthless souls",English,Drama,2018-10-25,125000.00,125000.00,Contribution,"Talent To Watch Program",
2018-2019,P2,"Jill and Jackfish Productions Inc.",Yellowknife,"North West Territories",Canada,"Therapy for Adults and Aunties",English,Drama,2018-08-20,15000.00,15000.00,Advance,"Development Program",
2018-2019,P2,"Oddfellows Entertainment Inc.",Vancouver,"British Columbia",Canada,"Mother of God",English,Thriller,2018-08-21,24000.00,24000.00,Advance,"Development Program",
2018-2019,P4,"Six Island Productions Inc.",Toronto,Ontario,Canada,"The Syrian Dancer",English,Drama,2019-01-04,15000.00,15000.00,Advance,"Development Program",
2018-2019,P4,"Six Island Productions Inc.",Toronto,Ontario,Canada,L'Inspecteur,French,"Historical Drama",2019-01-04,15000.00,15000.00,Advance,"Development Program",
2018-2019,P4,"Six Island Productions Inc.",Toronto,Ontario,Canada,"The Hag",English,Horror,2019-01-04,15000.00,15000.00,Advance,"Development Program",
2018-2019,P2,"9108-3006 Qu�bec inc.",Montreal,Quebec,Canada,"La vie priv�e des animaux",French,Drama,2018-09-17,15000.00,15000.00,Advance,"Development Program",
2018-2019,P4,"DOALM Ontario Inc.",Toronto,Ontario,Canada,"Death of a Ladies' Man",English,Drama,2019-03-22,1550000.00,1550000.00,Investment,"Production Program",
2018-2019,P3,"Achromatic Media Inc.",Montreal,Quebec,Canada,Fauve,French,Drama,2018-11-01,1700.00,1700.00,Contribution,"International Marketing Program",
2018-2019,P2,"Couzin Films Inc.",Montreal,Quebec,Canada,L2f2,French,"Romantic Comedy",2018-09-27,1500.00,1500.00,Contribution,"International Marketing Program",
2018-2019,P3,"L'OEIL VIF (Faisant affaire sous le nom Les Films du 3 mars)",Montreal,Quebec,Canada,Primas,French,,2018-12-11,15000.00,15000.00,Advance,"Marketing Program",
2018-2019,P3,"Canadian Media Producers Association - Association canadienne de la production m�diatique",Toronto,Ontario,Canada,"VIFF IMMERSIVE",,,2018-10-04,20000.00,20000.00,Contribution,"Promotion Program",
2018-2019,P4,"Atlantic Filmmakers Cooperative Limited",Halifax,"Nova Scotia",Canada,"FILM 5 and the Halifax Independent Filmmakers Festival",,,2019-01-21,26000.00,26000.00,Contribution,"Promotion Program",
2018-2019,P3,"Women In View",Toronto,Ontario,Canada,"FIVE IN FOCUS: ANIMATION (BC)",,,2018-10-22,15000.00,15000.00,Contribution,"Promotion Program",
2018-2019,P3,"Filmoption International Inc.",Westmount,Quebec,Canada,"Un printemps d'ailleurs",French,,2018-11-13,30000.00,30000.00,Advance,"Marketing Program",
2018-2019,P4,"Eagle Vision Inc.",Winnipeg,Manitoba,Canada,"The Feels Like",English,Comedy,2019-02-14,15000.00,15000.00,Advance,"Development Program",
2018-2019,P4,"Eagle Vision Inc.",Winnipeg,Manitoba,Canada,Diaspora,English,Drama,2019-02-14,15000.00,15000.00,Advance,"Development Program",
2018-2019,P4,"Eagle Vision Inc.",Winnipeg,Manitoba,Canada,"The Finality of Dusk",English,Drama,2019-02-14,15000.00,15000.00,Advance,"Development Program",
2018-2019,P3,"MMM Film Finance International Ltd.",Surrey,"British Columbia",Canada,"Of Heaven And Hell",English,Thriller,2018-11-20,15000.00,15000.00,Advance,"Development Program",
2018-2019,P4,"Films JAD Inc.",Montreal,Quebec,Canada,Ensemble,French,Documentary,2019-02-07,45000.00,45000.00,Contribution,"Theatrical Documentary Program",
2018-2019,P4,"Funfilm Distribution Inc.",Montreal,Quebec,Canada,Gen�se,French,,2019-02-06,30000.00,30000.00,Advance,"Marketing Program",
2018-2019,P3,"Woods Entertainment Canada Inc.",Toronto,Ontario,Canada,"Civil Disobedience",English,Thriller,2018-12-17,15000.00,15000.00,Advance,"Development Program",
2018-2019,P3,"Connections Productions Inc.",Bedford,"Nova Scotia",Canada,"Sauver Charlotte!",French,"Science fiction/Fantasy/Tale",2018-10-17,15000.00,15000.00,Advance,"Development Program",
2018-2019,P3,"Perfect Pictures Inc.",Calgary,Alberta,Canada,"Rogues and Renegades",English,"Science fiction/Fantasy/Tale",2018-11-15,15000.00,15000.00,Advance,"Development Program",
2018-2019,P3,"Savath Pictures Inc.",Vancouver,"British Columbia",Canada,Northland,English,Comedy,2018-10-23,15000.00,15000.00,Advance,"Development Program",
2018-2019,P3,"�a Tourne Productions Ltee.",Caraquet,"New Brunswick",Canada,"LE TROU DU CUL DU MONDE",French,Comedy,2018-12-18,15000.00,15000.00,Advance,"Development Program",
2018-2019,P3,"Motel Pictures Inc.",Toronto,Ontario,Canada,"Heidegger Stairwell",English,Drama,2018-11-06,15000.00,15000.00,Advance,"Development Program",
2018-2019,P3,"Groupe TVA inc. (Faisant affaires sous le nom de TVA Films)",Montreal,Quebec,Canada,Wolfe,French,Drama,2018-12-11,50424.00,50424.00,Advance,"Marketing Program",
2018-2019,P3,"Canadian Media Producers Association - Association canadienne de la production m�diatique",Toronto,Ontario,Canada,"Prime Time conference, Marketing Mentorship Program",,,2018-10-22,65000.00,65000.00,Contribution,"Promotion Program",
2018-2019,P3,"Front des r�alisateurs ind�pendants du Canada (FRIC)",Ottawa,Ontario,Canada,"Initiatives du FRIC pour les r�alisateurs issus des CLOSM",,,2018-10-23,20000.00,20000.00,Contribution,"Promotion Program",
2018-2019,P3,"Bunbury Films Inc.",Montreal,Quebec,Canada,"Du ventre au coeur",French,Drama,2018-10-18,15000.00,15000.00,Advance,"Development Program",
2018-2019,P3,"Mad Samurai Productions Inc.",Richmond,"British Columbia",Canada,"Beyond The Limit",English,Action/Adventure,2018-12-12,15000.00,15000.00,Advance,"Development Program",
2018-2019,P3,"Mad Samurai Productions Inc.",Richmond,"British Columbia",Canada,"Hard Home",English,Horror,2018-12-12,21700.00,21700.00,Advance,"Development Program",
2018-2019,P3,"Mad Samurai Productions Inc.",Richmond,"British Columbia",Canada,Trust/Fall,English,Thriller,2018-12-12,15000.00,15000.00,Advance,"Development Program",
2018-2019,P3,"Mad Samurai Productions Inc.",Richmond,"British Columbia",Canada,ZED,English,Thriller,2018-12-12,23300.00,23300.00,Advance,"Development Program",
2018-2019,P3,"Entertainment One Films Canada Inc.",Toronto,Ontario,Canada,"Little Italy",English,,2018-11-16,1043640.00,1043640.00,Advance,"Marketing Program",
2018-2019,P3,"Visaff South Asian Film Festival Society",Surrey,"British Columbia",Canada,"Vancouver International South Asian Film Festival",,,2018-11-09,5000.00,5000.00,Contribution,"Promotion Program",
2018-2019,P4,"Film Progreso inc.",Montreal,Quebec,Canada,"La parfaite victime",French,Documentary,2019-02-22,92000.00,92000.00,Contribution,"Theatrical Documentary Program",
2018-2019,P2,"Kayaking For Beginners Incorporated",Toronto,Ontario,Canada,"Kayak to Klemtu",English,,2018-09-18,1500.00,1500.00,Contribution,"International Marketing Program",
2018-2019,P4,"Argus Productions Inc.",Montreal,Quebec,Canada,Fondations,French,Documentary,2019-03-11,45000.00,45000.00,Contribution,"Theatrical Documentary Program",
2018-2019,P4,"Rezolution Pictures (Red Fever) Inc.",Outremont,Quebec,Canada,"Red Fever",English,Documentary,2019-03-27,100000.00,100000.00,Contribution,"Theatrical Documentary Program",
2018-2019,P4,"Downstream Documentary Productions Inc.",Saskatoon,Saskatchewan,Canada,"n�pawistam�sowin: We Will Stand Up /Life & Death on Prairies",English,Documentary,2019-03-19,75000.00,75000.00,Investment,"Theatrical Documentary Program",
2018-2019,P4,"Productions l'unit� centrale inc.",Montreal,Quebec,Canada,"La morte n'existe pas",French,Drama,2019-02-28,1500.00,1500.00,Contribution,"International Marketing Program",
2018-2019,P4,"Productions l'unit� centrale inc.",Montreal,Quebec,Canada,"Un go�t amer d'�ternit� (a.k.a. L'hiver est la derni�re saison)",French,Drama,2019-02-28,1500.00,1500.00,Contribution,"International Marketing Program",
2018-2019,P3,"Amazing Factory Productions Inc.",Vancouver,"British Columbia",Canada,Offsides,English,Comedy,2018-12-19,15000.00,15000.00,Advance,"Development Program",
2018-2019,P3,"Amazing Factory Productions Inc.",Vancouver,"British Columbia",Canada,"Sometimes You Miss It",English,Drama,2018-12-19,15000.00,15000.00,Advance,"Development Program",
2018-2019,P3,"White Pine Pictures Inc.",Toronto,Ontario,Canada,Dreamers,English,"Historical Drama",2018-11-27,15000.00,15000.00,Advance,"Development Program",
2018-2019,P3,"Les Productions des Films de l'Autre Inc.",Montreal,Quebec,Canada,"La position des astres",French,Drama,2018-10-22,17500.00,17500.00,Advance,"Development Program",
2018-2019,P3,"Les Productions des Films de l'Autre Inc.",Montreal,Quebec,Canada,"S�lection Naturelle",French,Drama,2018-10-22,17500.00,17500.00,Advance,"Development Program",
2018-2019,P3,"Metafilms Inc.",Montreal,Quebec,Canada,Lhasa,English,Documentary,2018-10-22,23218.00,23218.00,Advance,"Development Program",
2018-2019,P3,"Metafilms Inc.",Montreal,Quebec,Canada,"Le plein potentiel",French,Documentary,2018-10-22,15120.00,15120.00,Advance,"Development Program",
2018-2019,P3,"Metafilms Inc.",Montreal,Quebec,Canada,"La prunelle de tes yeux",French,Drama,2018-10-22,61040.00,61040.00,Advance,"Development Program",
2018-2019,P3,"Metafilms Inc.",Montreal,Quebec,Canada,"Simple comme Sylvain",French,Drama,2018-10-22,61040.00,61040.00,Advance,"Development Program",
2018-2019,P3,"JA Productions Inc.",Oakville,Ontario,Canada,"Tammy's Always Dying",English,Drama,2018-10-18,1500.00,1500.00,Contribution,"International Marketing Program",
2018-2019,P3,"9348-8310 Qu�bec inc.",Montreal,Quebec,Canada,"Charlotte a du fun",French,Comedy,2018-12-04,1500.00,1500.00,Contribution,"International Marketing Program",
2018-2019,P3,"LES PRODUCTIONS KINESIS INC.",Montreal,Quebec,Canada,"La route de Chlifa",French,Drama,2018-10-22,15000.00,15000.00,Advance,"Development Program",
2018-2019,P3,"Eye Steel Film Distribution inc.",Montreal,Quebec,Canada,"Coproduction market - no specific project",English,,2018-12-18,1500.00,1500.00,Contribution,"International Marketing Program",
2018-2019,P3,"2412658 Ontario Inc.",Toronto,Ontario,Canada,"The Anything Machine",English,Drama,2018-10-11,15000.00,15000.00,Advance,"Development Program",
2018-2019,P3,"Geordie Sabbagh Productions Inc.",Toronto,Ontario,Canada,"Somewhere There's Music",English,Drama,2018-10-16,15000.00,15000.00,Advance,"Development Program",
2018-2019,P3,"8439222 Canada Inc. (faisant affaires sous le nom de SMT Features)",Saint-F�licien,Quebec,Canada,"Portfolio | Portefeuille 2018-2019 8439222 Canada Inc. (faisant affaires sous le nom de SMT Features)",French,,2018-12-14,15000.00,15000.00,Advance,"Development Program",
2018-2019,P3,"Rink Rat Productions Inc.","St. John's",Newfoundland/Labrador,Canada,"A Bay Story",English,Comedy,2018-12-13,27063.00,27063.00,Advance,"Development Program",
2018-2019,P3,"Rink Rat Productions Inc.","St. John's",Newfoundland/Labrador,Canada,"Brotherly Love",English,Drama,2018-12-13,22642.00,22642.00,Advance,"Development Program",
2018-2019,P3,"Rink Rat Productions Inc.","St. John's",Newfoundland/Labrador,Canada,Shimmer,English,Drama,2018-12-13,40295.00,40295.00,Advance,"Development Program",
2018-2019,P3,"Manito M�dia Inc.",Winnipeg,Manitoba,Canada,"Le myst�re H�mon",French,Drama,2018-11-20,15000.00,15000.00,Advance,"Development Program",
2018-2019,P4,"EMA FILMS INC.",Montreal,Quebec,Canada,"ELORA'S DEATHWISH",English,Action/Adventure,2019-01-24,20000.00,20000.00,Advance,"Development Program",
2018-2019,P4,"EMA FILMS INC.",Montreal,Quebec,Canada,"The Ledge",English,Comedy,2019-01-24,15000.00,15000.00,Advance,"Development Program",
2018-2019,P4,"EMA FILMS INC.",Montreal,Quebec,Canada,BEANS,English,"Historical Drama",2019-01-24,20000.00,20000.00,Advance,"Development Program",
2018-2019,P3,"9281-8269 Qu�bec Inc.",St-Bruno,Quebec,Canada,"Un sens critique",French,Documentary,2018-12-13,15000.00,15000.00,Advance,"Development Program",
2018-2019,P4,"9219-3010 Qu�bec Inc.",Montreal,Quebec,Canada,"Jusqu'� la fin / A moment of pure joy",French,Comedy,2019-01-04,15000.00,15000.00,Advance,"Development Program",
2018-2019,P4,"9219-3010 Qu�bec Inc.",Montreal,Quebec,Canada,"La B�te",French,Comedy,2019-01-04,15000.00,15000.00,Advance,"Development Program",
2018-2019,P4,"9219-3010 Qu�bec Inc.",Montreal,Quebec,Canada,Nocebo,French,Comedy,2019-01-04,15000.00,15000.00,Advance,"Development Program",
2018-2019,P3,"9348-8310 Qu�bec inc.",Montreal,Quebec,Canada,"Charlotte a du fun",French,Comedy,2018-11-29,1500.00,1500.00,Contribution,"International Marketing Program",
2018-2019,P3,"9348-8310 Qu�bec inc.",Montreal,Quebec,Canada,"Charlotte a du fun",French,Comedy,2018-12-04,1500.00,1500.00,Contribution,"International Marketing Program",
2018-2019,P3,"Scarborough Pictures Inc.",Toronto,Ontario,Canada,SHOOK,English,Drama,2018-10-20,15000.00,15000.00,Advance,"Development Program",
2018-2019,P3,"P�riph�ria Productions Inc.",Montreal,Quebec,Canada,"NO MEAN DREAM",English,Comedy,2018-11-06,15000.00,15000.00,Advance,"Development Program",
2018-2019,P4,"Chaos A Film Company Inc.",Calgary,Alberta,Canada,Stewed,English,Comedy,2019-02-13,15000.00,15000.00,Advance,"Development Program",
2018-2019,P4,"Raven Banner Releasing Inc.",Toronto,Ontario,Canada,Supergrid,English,,2019-01-10,42487.00,42487.00,Advance,"Marketing Program",
2018-2019,P3,"Hutte Films Inc.",Montreal,Quebec,Canada,"Lunar-Orbit Rendez-vous",French,"Romantic Comedy",2018-11-14,1700.00,1700.00,Contribution,"International Marketing Program",
2018-2019,P3,"Lumanity Productions Inc.",Toronto,Ontario,Canada,"Stolen Moments",English,Drama,2018-12-13,20000.00,20000.00,Advance,"Development Program",
2018-2019,P3,"Echo Media Inc.",Montreal,Quebec,Canada,"Hugo, Celeste et le petit peuple du Nord",French,Action/Adventure,2018-12-18,15000.00,15000.00,Advance,"Development Program",
2018-2019,P3,"Echo Media Inc.",Montreal,Quebec,Canada,EURYDICE,English,Musical,2018-12-18,15000.00,15000.00,Advance,"Development Program",
2018-2019,P3,"Echo Media Inc.",Montreal,Quebec,Canada,"5 Fr�res",French,Mystery/Crime/Police,2018-12-18,25000.00,25000.00,Advance,"Development Program",
2018-2019,P3,"Manifold Pictures Inc.",Calgary,Alberta,Canada,"The Red River",English,"Historical Drama",2018-12-17,15000.00,15000.00,Advance,"Development Program",
2018-2019,P3,"Fluent Films Inc.",Montreal,Quebec,Canada,"Sharing Sharon",English,Comedy,2018-11-19,15000.00,15000.00,Advance,"Development Program",
2018-2019,P3,"Les Productions Galafilm Inc. / Galafilm Productions Inc.",Montreal,Quebec,Canada,"THERE'S A CRACK IN EVERYTHING: LEONARD COHEN, POET OF BROKENNESS (Titre fran�ais: IL Y A UNE FAILLE DANS TOUTE CHOSE)",English,Documentary,2018-12-18,15000.00,15000.00,Advance,"Development Program",
2018-2019,P3,"Les Films du Tricycle Inc.","Les Bergeronnes",Quebec,Canada,"Animal Macula",French,Documentary,2018-11-06,15000.00,15000.00,Advance,"Development Program",
2018-2019,P3,"Quadrant Motion Pictures Inc.",Toronto,Ontario,Canada,"At the End of the World",English,Drama,2018-11-22,15000.00,15000.00,Advance,"Development Program",
2018-2019,P3,"WANGO Films Inc.",Toronto,Ontario,Canada,"The Corners",English,Drama,2018-10-19,20000.00,20000.00,Advance,"Development Program",
2018-2019,P3,"136469 Canada Limited o/a Sphinx Productions",Toronto,Ontario,Canada,"Carmine Street Guitars",English,,2018-11-05,1500.00,1500.00,Contribution,"International Marketing Program",
2018-2019,P3,"136469 Canada Limited o/a Sphinx Productions",Toronto,Ontario,Canada,"Carmine Street Guitars",English,,2018-12-11,1500.00,1500.00,Contribution,"International Marketing Program",
2018-2019,P3,"136469 Canada Limited o/a Sphinx Productions",Toronto,Ontario,Canada,"Carmine Street Guitars",English,,2018-12-11,1500.00,1500.00,Contribution,"International Marketing Program",
2018-2019,P3,"136469 Canada Limited o/a Sphinx Productions",Toronto,Ontario,Canada,"Carmine Street Guitars",English,,2018-12-11,1500.00,1500.00,Contribution,"International Marketing Program",
2018-2019,P3,"Corporation Wapikoni Mobile",Montreal,Quebec,Canada,"Initiative du Wapikoni",,,2018-10-29,50000.00,50000.00,Contribution,"Promotion Program",
2018-2019,P3,"Films du Boulevard Inc.",Montreal,Quebec,Canada,"Devenir un monstre",French,Drama,2018-11-15,15000.00,15000.00,Advance,"Development Program",
2018-2019,P3,"Filmoption International Inc.",Westmount,Quebec,Canada,"Les Salopes ou le sucre naturel de la peau",French,,2018-11-16,97500.00,97500.00,Advance,"Marketing Program",
2018-2019,P3,"The Film Farm Inc.",Toronto,Ontario,Canada,Honourable?,English,Drama,2018-11-21,15000.00,15000.00,Advance,"Development Program",
2018-2019,P3,"The Film Farm Inc.",Toronto,Ontario,Canada,"Lord Only Knows I'm Gone",English,Drama,2018-11-21,54400.00,54400.00,Advance,"Development Program",
2018-2019,P3,"Believerville Productions Inc.",Toronto,Ontario,Canada,"Thought Control",English,Thriller,2018-10-17,15000.00,15000.00,Advance,"Development Program",
2018-2019,P3,"FILMARTO INC.",Montreal,Quebec,Canada,LNI,French,Comedy,2018-11-19,25000.00,25000.00,Advance,"Development Program",
2018-2019,P3,"FILMARTO INC.",Montreal,Quebec,Canada,"Husband, Wife and Maid",English,Mystery/Crime/Police,2018-11-19,18480.00,18480.00,Advance,"Development Program",
2018-2019,P4,"Planet in Focus: International Environmental Film & Video Festival",Toronto,Ontario,Canada,"Planet in Focus Environmental Film Festival",,,2019-03-25,3000.00,3000.00,Contribution,"Promotion Program",
2018-2019,P3,"Productions Avenida inc.",Montreal,Quebec,Canada,Mishka,French,Action/Adventure,2018-12-18,15000.00,15000.00,Advance,"Development Program",
2018-2019,P3,"New Brunswick Filmmakers Co-operative Limited",Fredericton,"New Brunswick",Canada,"Silver Wave Film Festival",,,2018-10-30,3000.00,3000.00,Contribution,"Promotion Program",
2018-2019,P4,"New Brunswick Filmmakers Co-operative Limited",Fredericton,"New Brunswick",Canada,"Short Film Venture Program",,,2019-01-23,15000.00,15000.00,Contribution,"Promotion Program",
2018-2019,P3,"Films S�ville Inc. (Les)",Montreal,Quebec,Canada,"Disparition des lucioles (La)",French,Drama,2018-12-04,144937.00,144937.00,Advance,"Marketing Program",
2018-2019,P3,"Vancouver Asian Film Festival Society",Vancouver,"British Columbia",Canada,"Vancouver Asian Film Festival",,,2018-10-18,5000.00,5000.00,Contribution,"Promotion Program",
2018-2019,P3,"Voyelles Films Productions inc.",Montreal,Quebec,Canada,"Sin La Habana",English,Drama,2018-11-28,1500.00,1500.00,Contribution,"International Marketing Program",
2018-2019,P3,"Fratel Films",Montpellier,,France,"Chien de garde",French,Thriller,2018-10-11,20000.00,20000.00,Contribution,"Export Assistance Program",
2018-2019,P3,"Victoria Independent Film and Video Festival",Victoria,"British Columbia",Canada,"Victoria Film Festival and Springboard",,,2018-11-06,32445.00,32445.00,Contribution,"Promotion Program",
2018-2019,P3,"Aircraft Pictures Limited",Toronto,Ontario,Canada,"Daughter of Bells",English,"Science fiction/Fantasy/Tale",2018-11-06,25000.00,25000.00,Advance,"Development Program",
2018-2019,P3,"Sceneries Entertainment Corp.",Burbank,California,"United States",NELLY,French,Drama,2018-11-06,19000.00,19000.00,Contribution,"Export Assistance Program",
2018-2019,P4,"Films Vision 4 Inc.",Montreal,Quebec,Canada,"FANNY CLOUTIER ou l�ann�e o� j�ai failli rater mon adolescence",French,Action/Adventure,2019-01-09,30000.00,30000.00,Advance,"Development Program",
2018-2019,P4,"Films Vision 4 Inc.",Montreal,Quebec,Canada,"Le g�niteur",French,Comedy,2019-01-09,15000.00,15000.00,Advance,"Development Program",
2018-2019,P4,"M2 Distributions",Marseille,,France,"Primas (previous title - Rocio)",French,Documentary,2019-01-11,15000.00,15000.00,Contribution,"Export Assistance Program",
2018-2019,P4,"The Charlottetown Film Society, Inc.",Charlottetown,"Prince Edward Island",Canada,"The Charlottetown Film Festival",,,2019-03-15,2500.00,2500.00,Contribution,"Promotion Program",
2018-2019,P3,"Euclid 431 Pictures Inc.",Toronto,Ontario,Canada,"Giant Little Ones (The)",English,Drama,2018-10-04,4000.00,4000.00,Contribution,"International Marketing Program",
2018-2019,P3,"Les Productions du Moment Inc.",Saint-Basile-le-Grand,Quebec,Canada,"Tu es parfaite",French,Drama,2018-12-18,15000.00,15000.00,Advance,"Development Program",
2018-2019,P3,"Trilight Entertainment Inc.",Calgary,Alberta,Canada,Capricious,English,Thriller,2018-10-17,15000.00,15000.00,Advance,"Development Program",
2018-2019,P3,"Thoughts From The Asylum Productions Ltd.",Vancouver,"British Columbia",Canada,"Winners and Losers",English,Comedy,2018-11-19,35000.00,35000.00,Advance,"Development Program",
2018-2019,P3,"Scythia Films Inc.",Toronto,Ontario,Canada,"Private Dreams and Public Nightmares",English,Horror,2018-12-17,15000.00,15000.00,Advance,"Development Program",
2018-2019,P3,"Scythia Films Inc.",Toronto,Ontario,Canada,Slash/Back,English,"Science fiction/Fantasy/Tale",2018-12-17,15000.00,15000.00,Advance,"Development Program",
2018-2019,P3,"Art et Essai Administration Inc.",Montreal,Quebec,Canada,"Les deux pieds � terre",French,Drama,2018-12-19,20000.00,20000.00,Advance,"Development Program",
2018-2019,P3,"Attraction Images inc.",Montreal,Quebec,Canada,M�tis,French,Comedy,2018-12-13,21364.00,21364.00,Advance,"Development Program",
2018-2019,P3,"Attraction Images inc.",Montreal,Quebec,Canada,Royal,French,Drama,2018-12-13,55822.00,55822.00,Advance,"Development Program",
2018-2019,P3,"Attraction Images inc.",Montreal,Quebec,Canada,Riel,English,"Historical Drama",2018-12-13,70162.00,70162.00,Advance,"Development Program",
2018-2019,P3,"Attraction Images inc.",Montreal,Quebec,Canada,L'apprenti,French,Mystery/Crime/Police,2018-12-13,15000.00,15000.00,Advance,"Development Program",
2018-2019,P3,"Attraction Images inc.",Montreal,Quebec,Canada,"L'�ge des statues",French,"Romantic Comedy",2018-12-13,52651.00,52651.00,Advance,"Development Program",
2018-2019,P3,"Midnight Lamp Films Inc.",Toronto,Ontario,Canada,"Police Woman",English,Documentary,2018-10-31,15000.00,15000.00,Advance,"Development Program",
2018-2019,P3,"Zoofilms Inc.",Mansonville,Quebec,Canada,"Les Internes",French,Musical,2018-10-31,15000.00,15000.00,Advance,"Development Program",
2018-2019,P3,"Amalga Cr�ations M�dias Inc.",Montreal,Quebec,Canada,"Sylvie aime Maurice",French,Musical,2018-11-02,15000.00,15000.00,Advance,"Development Program",
2018-2019,P3,"David Gross Productions Inc.",Toronto,Ontario,Canada,"Deal of a Lifetime",English,Drama,2018-12-06,200000.00,200000.00,Advance,"Development Program",
2018-2019,P4,"9164-6828 Qu�bec Inc. (d/b/a Productions Loaded Pictures)",Montreal,Quebec,Canada,"The Misunderstanding",English,Comedy,2019-01-16,15000.00,15000.00,Advance,"Development Program",
2018-2019,P3,"Shore Road Pictures Inc.",Fredericton,"New Brunswick",Canada,"A Creeping Normalcy",English,Thriller,2018-11-20,15000.00,15000.00,Advance,"Development Program",
2018-2019,P4,"Serendipity Point Films Inc.",Toronto,Ontario,Canada,"All My Love, Vadim",English,Drama,2019-02-11,50673.00,50673.00,Advance,"Development Program",
2018-2019,P3,"Aetios Productions Inc.",Saint-Sauveur,Quebec,Canada,"Stanley Cup Bodyguard",French,Comedy,2018-11-19,30000.00,30000.00,Advance,"Development Program",
2018-2019,P3,"Aetios Productions Inc.",Saint-Sauveur,Quebec,Canada,"Une Promesse",French,Drama,2018-11-19,15000.00,15000.00,Advance,"Development Program",
2018-2019,P3,"Neophyte Productions Inc.",Toronto,Ontario,Canada,"Stage 3",English,Thriller,2018-11-26,15000.00,15000.00,Advance,"Development Program",
2018-2019,P4,"Lyla Films Inc.",Montreal,Quebec,Canada,"H�tel Silence",French,Drama,2019-01-16,75000.00,75000.00,Advance,"Development Program",
2018-2019,P3,"GROUPE PVP INC.",Matane,Quebec,Canada,"Terminal Grand Nord",French,Mystery/Crime/Police,2018-10-31,20000.00,20000.00,Advance,"Development Program",
2018-2019,P4,"Firecrackers Film Incorporated",Bolton,Ontario,Canada,Firecrackers,English,,2019-03-04,1500.00,1500.00,Contribution,"International Marketing Program",
2018-2019,P3,"Sienna Films Inc.",Toronto,Ontario,Canada,"Happy Place",English,Drama,2018-12-17,15000.00,15000.00,Advance,"Development Program",
2018-2019,P3,"Sienna Films Inc.",Toronto,Ontario,Canada,"Take Me To Church",English,"Romantic Comedy",2018-12-17,15000.00,15000.00,Advance,"Development Program",
2018-2019,P3,"8585016 Canada Inc.",Toronto,Ontario,Canada,"Roxham Road",English,Thriller,2018-11-14,15000.00,15000.00,Advance,"Development Program",
2018-2019,P3,"Gorgeous Mistake Productions Inc.",Dartmouth,"Nova Scotia",Canada,Spyderz,English,Horror,2018-12-17,15000.00,15000.00,Advance,"Development Program",
2018-2019,P3,"Bravo Charlie inc.",Montreal,Quebec,Canada,"LE PARIA",French,Thriller,2018-11-06,15000.00,15000.00,Advance,"Development Program",
2018-2019,P3,"Christal Films Productions Inc.",Montreal,Quebec,Canada,"Grande ligue",French,Drama,2018-10-24,44000.00,44000.00,Advance,"Development Program",
2018-2019,P3,"Christal Films Productions Inc.",Montreal,Quebec,Canada,Pornopoly,French,Drama,2018-10-24,36000.00,36000.00,Advance,"Development Program",
2018-2019,P3,"Christal Films Productions Inc.",Montreal,Quebec,Canada,S'enfuir,French,"Historical Drama",2018-10-24,55000.00,55000.00,Advance,"Development Program",
2018-2019,P3,"Christal Films Productions Inc.",Montreal,Quebec,Canada,"Morts de rire",French,Mystery/Crime/Police,2018-10-24,43000.00,43000.00,Advance,"Development Program",
2018-2019,P3,"Christal Films Productions Inc.",Montreal,Quebec,Canada,"La Gu�rite",French,Thriller,2018-10-24,22000.00,22000.00,Advance,"Development Program",
2018-2019,P3,"Arnait Video Productions Inc.",Igloolik,Nunavut,Canada,"Eating souls",English,Documentary,2018-11-29,15000.00,15000.00,Advance,"Development Program",
2018-2019,P3,"Arnait Video Productions Inc.",Igloolik,Nunavut,Canada,"Tia and Piujuq , the sequel (working title)",English,"Science fiction/Fantasy/Tale",2018-11-29,15000.00,15000.00,Advance,"Development Program",
2018-2019,P3,"9106-3545 Qu�bec Inc.",Longueuil,Quebec,Canada,AMERICA,French,Action/Adventure,2018-10-31,15000.00,15000.00,Advance,"Development Program",
2018-2019,P4,"Scythia Films Inc.",Toronto,Ontario,Canada,"The Eden Express",English,Drama,2019-01-18,1500.00,1500.00,Contribution,"International Marketing Program",
2018-2019,P3,"TimeLapse Pictures Productions Inc.",Toronto,Ontario,Canada,Hangar,English,Drama,2018-10-11,15000.00,15000.00,Advance,"Development Program",
2018-2019,P3,"OP Development Inc.",Winnipeg,Manitoba,Canada,"Innercity Girl Like Me",English,Drama,2018-11-08,20000.00,20000.00,Advance,"Development Program",
2018-2019,P3,"Pitchblack Pictures Inc.",Burnaby,"British Columbia",Canada,"UNTITLED FAME PARABLE",English,Drama,2018-11-13,15000.00,15000.00,Advance,"Development Program",
2018-2019,P4,"Shadow Shows Incorporated",Toronto,Ontario,Canada,"Joni Blank",English,Comedy,2019-01-03,15000.00,15000.00,Advance,"Development Program",
2018-2019,P4,"Shadow Shows Incorporated",Toronto,Ontario,Canada,"La Fille de la Coiffeuse",French,Drama,2019-01-03,15000.00,15000.00,Advance,"Development Program",
2018-2019,P3,"6710875 Canada inc.",Gatineau,Quebec,Canada,"The Papergirl",English,Thriller,2018-11-14,15000.00,15000.00,Advance,"Development Program",
2018-2019,P3,"Copperheart Entertainment Inc.",Toronto,Ontario,Canada,"BLURRED LINES",English,"Science fiction/Fantasy/Tale",2018-11-13,40000.00,40000.00,Advance,"Development Program",
2018-2019,P3,"Cin�maginaire Inc.",Montreal,Quebec,Canada,"Les Bombes",French,Comedy,2018-12-19,19740.00,19740.00,Advance,"Development Program",
2018-2019,P3,"Cin�maginaire Inc.",Montreal,Quebec,Canada,"P�re et filles ( la fille de son  p�re)",French,Comedy,2018-12-19,59724.00,59724.00,Advance,"Development Program",
2018-2019,P3,"Cin�maginaire Inc.",Montreal,Quebec,Canada,"Divine Illusion",French,Drama,2018-12-19,49716.00,49716.00,Advance,"Development Program",
2018-2019,P3,"Cin�maginaire Inc.",Montreal,Quebec,Canada,"Fille de ma m�re",French,Drama,2018-12-19,15000.00,15000.00,Advance,"Development Program",
2018-2019,P3,"Cin�maginaire Inc.",Montreal,Quebec,Canada,"R�volution 60",French,Drama,2018-12-19,55646.00,55646.00,Advance,"Development Program",
2018-2019,P3,"Cin�maginaire Inc.",Montreal,Quebec,Canada,SAM,French,Drama,2018-12-19,15000.00,15000.00,Advance,"Development Program",
2018-2019,P3,"Groupe Fair-Play Inc.",Montreal,Quebec,Canada,"Samuel de Champlain",French,"Historical Drama",2018-11-20,15000.00,15000.00,Advance,"Development Program",
2018-2019,P3,"H Is For Productions Inc.",Toronto,Ontario,Canada,DERAILED,English,Drama,2018-11-13,20000.00,20000.00,Advance,"Development Program",
2018-2019,P3,"Microscope Inc.",Montreal,Quebec,Canada,"Modern Knots",English,Comedy,2018-12-18,51000.00,51000.00,Advance,"Development Program",
2018-2019,P3,"Microscope Inc.",Montreal,Quebec,Canada,"Soccer War",English,Drama,2018-12-18,60000.00,60000.00,Advance,"Development Program",
2018-2019,P3,"Microscope Inc.",Montreal,Quebec,Canada,Apr�s,French,Drama,2018-12-18,35000.00,35000.00,Advance,"Development Program",
2018-2019,P3,"Microscope Inc.",Montreal,Quebec,Canada,"Les lignes du parc",French,Drama,2018-12-18,39000.00,39000.00,Advance,"Development Program",
2018-2019,P3,"Microscope Inc.",Montreal,Quebec,Canada,"Les mondes de Hamdi",French,Drama,2018-12-18,15000.00,15000.00,Advance,"Development Program",
2018-2019,P3,"Microscope Inc.",Montreal,Quebec,Canada,"Les b�tes",French,"Science fiction/Fantasy/Tale",2018-12-18,15000.00,15000.00,Advance,"Development Program",
2018-2019,P4,"Howie Role Productions Inc.",Vancouver,"British Columbia",Canada,Defamer,English,Comedy,2019-01-04,15000.00,15000.00,Advance,"Development Program",
2018-2019,P3,"Sugar Shack Films Inc.",Victoria,"British Columbia",Canada,"Missing: Presumed Dead",English,"Historical Drama",2018-11-21,15000.00,15000.00,Advance,"Development Program",
2018-2019,P3,"Curiosity Pictures Inc.",Burnaby,"British Columbia",Canada,"Middle 8",English,Drama,2018-11-21,15000.00,15000.00,Advance,"Development Program",
2018-2019,P4,"Productions l'unit� centrale inc.",Montreal,Quebec,Canada,"D'amour et d'hiver",French,Drama,2019-02-28,15000.00,15000.00,Advance,"Development Program",
2018-2019,P4,"Productions l'unit� centrale inc.",Montreal,Quebec,Canada,"La mort n'existe pas",French,Drama,2019-02-28,15000.00,15000.00,Advance,"Development Program",
2018-2019,P3,"Screen Siren Pictures Inc.",Vancouver,"British Columbia",Canada,"Out of the Barren",English,Drama,2018-12-17,20720.00,20720.00,Advance,"Development Program",
2018-2019,P3,"Screen Siren Pictures Inc.",Vancouver,"British Columbia",Canada,"Running Girl",English,Thriller,2018-12-17,57120.00,57120.00,Advance,"Development Program",
2018-2019,P3,"Microclimat Films inc.",Montreal,Quebec,Canada,Halmoni,French,Drama,2018-10-31,15000.00,15000.00,Advance,"Development Program",
2018-2019,P3,"White Eagle Entertainment Inc.","East York",Ontario,Canada,"12 Days",English,Drama,2018-11-09,15000.00,15000.00,Advance,"Development Program",
2018-2019,P4,"Devonshire Productions Inc.",Toronto,Ontario,Canada,Mary,English,Drama,2019-03-05,15000.00,15000.00,Advance,"Development Program",
2018-2019,P4,"Devonshire Productions Inc.",Toronto,Ontario,Canada,Miromiro,English,Drama,2019-03-05,15000.00,15000.00,Advance,"Development Program",
2018-2019,P3,"Max Films M�dia Inc.",Montreal,Quebec,Canada,"FRONTI�RES (aka 3 Soeurs)",French,Thriller,2018-11-19,15000.00,15000.00,Advance,"Development Program",
2018-2019,P3,"Max Films M�dia Inc.",Montreal,Quebec,Canada,"LA MEUTE",French,Thriller,2018-11-19,15000.00,15000.00,Advance,"Development Program",
2018-2019,P4,"Films Outsiders Inc. (Les)",Montreal,Quebec,Canada,"IL �TAIT UNE FOIS UNE ZONE DE PAIX",French,Documentary,2019-02-07,25000.00,25000.00,Advance,"Development Program",
2018-2019,P4,"Films Outsiders Inc. (Les)",Montreal,Quebec,Canada,"UNE C�R�MONIE POUR CHARLIE",French,Drama,2019-02-07,15000.00,15000.00,Advance,"Development Program",
2018-2019,P3,"9342-2947 QU�BEC INC.",Orford,Quebec,Canada,M�m�,French,Comedy,2018-11-14,15000.00,15000.00,Advance,"Development Program",
2018-2019,P3,"9215-8534 Qu�bec Inc. (Parallaxes)",Saint-Pierre,Quebec,Canada,"Lentement la beaut�",French,Drama,2018-11-09,15000.00,15000.00,Advance,"Development Program",
2018-2019,P3,"Voyelles Films Productions inc.",Montreal,Quebec,Canada,SEULS,French,Drama,2018-11-27,15000.00,15000.00,Advance,"Development Program",
2018-2019,P3,"Jobro Productions Inc.",Toronto,Ontario,Canada,"Generation of Sociopaths",English,Documentary,2018-11-08,15000.00,15000.00,Advance,"Development Program",
2018-2019,P3,"K.O. 24 Inc.",Montreal,Quebec,Canada,"Mr. Thibault",French,Comedy,2018-11-20,15000.00,15000.00,Advance,"Development Program",
2018-2019,P3,"Down In The Valley Productions Inc.",Calgary,Alberta,Canada,"2 Funerals, a Round Dance and a Wedding",English,Comedy,2018-11-14,15000.00,15000.00,Advance,"Development Program",
2018-2019,P3,"Down In The Valley Productions Inc.",Calgary,Alberta,Canada,"Alberta Number One",English,Drama,2018-11-14,15000.00,15000.00,Advance,"Development Program",
2018-2019,P4,"Trinica Entertainment Consultants Inc.",Montreal,Quebec,Canada,"The Tree of Samhain",English,"Science fiction/Fantasy/Tale",2019-03-26,20000.00,20000.00,Advance,"Development Program",
2018-2019,P4,"1976 Productions Inc.",Montreal,Quebec,Canada,"La ligne jaune",French,Drama,2019-01-03,15000.00,15000.00,Advance,"Development Program",
2018-2019,P4,"1976 Productions Inc.",Montreal,Quebec,Canada,"Le Pacte",French,Horror,2019-01-03,15000.00,15000.00,Advance,"Development Program",
2018-2019,P3,"Aiken Heart Films Inc.",Toronto,Ontario,Canada,"Boring Girls",English,Drama,2018-11-09,15000.00,15000.00,Advance,"Development Program",
2018-2019,P4,"Documentary Organization of Canada",Toronto,Ontario,Canada,"DOC & CMPA Mission to Getting Real L.A",,,2019-02-11,10000.00,10000.00,Contribution,"Promotion Program",
2018-2019,P4,"Karma Film Inc.",Saskatoon,Saskatchewan,Canada,"The Power of Nothingness",English,Action/Adventure,2019-01-03,15000.00,15000.00,Advance,"Development Program",
2018-2019,P4,"Karma Film Inc.",Saskatoon,Saskatchewan,Canada,Boyfriend,English,Drama,2019-01-03,15000.00,15000.00,Advance,"Development Program",
2018-2019,P4,"Karma Film Inc.",Saskatoon,Saskatchewan,Canada,"The Truth About Monsters",English,"Science fiction/Fantasy/Tale",2019-01-03,15000.00,15000.00,Advance,"Development Program",
2018-2019,P3,"Black Dog Films Inc.",Halifax,"Nova Scotia",Canada,Riflemen,English,Drama,2018-11-07,15000.00,15000.00,Advance,"Development Program",
2018-2019,P3,"Bad Astronaut Inc.",Halifax,"Nova Scotia",Canada,"THE KINGS DAUGHTERS",English,"Historical Drama",2018-11-19,15000.00,15000.00,Advance,"Development Program",
2018-2019,P3,"Film Forge Productions Inc.",Toronto,Ontario,Canada,"CUTBLOCK 7190",English,Drama,2018-12-14,35000.00,35000.00,Advance,"Development Program",
2018-2019,P3,"Film Forge Productions Inc.",Toronto,Ontario,Canada,Mizeria,English,Drama,2018-12-14,15000.00,15000.00,Advance,"Development Program",
2018-2019,P4,"Holdfast Pictures Inc.",Halifax,"Nova Scotia",Canada,"Birds In Fall",English,Drama,2019-01-03,15000.00,15000.00,Advance,"Development Program",
2018-2019,P4,"Holdfast Pictures Inc.",Halifax,"Nova Scotia",Canada,"Company Town",English,Drama,2019-01-03,25000.00,25000.00,Advance,"Development Program",
2018-2019,P3,"Association coop�rative de productions audio-visuelles",Montreal,Quebec,Canada,"GALWAY GIRLS",French,Drama,2018-12-19,15000.00,15000.00,Advance,"Development Program",
2018-2019,P3,"Association coop�rative de productions audio-visuelles",Montreal,Quebec,Canada,"ISABELLE ET SOPHIE",French,Drama,2018-12-19,15000.00,15000.00,Advance,"Development Program",
2018-2019,P3,"Association coop�rative de productions audio-visuelles",Montreal,Quebec,Canada,"JULIETTE ET L'AMOUR",French,Drama,2018-12-19,15000.00,15000.00,Advance,"Development Program",
2018-2019,P3,"Association coop�rative de productions audio-visuelles",Montreal,Quebec,Canada,"LE DERNIER REPAS",French,Drama,2018-12-19,25000.00,25000.00,Advance,"Development Program",
2018-2019,P3,"Association coop�rative de productions audio-visuelles",Montreal,Quebec,Canada,"L'HABITUDE DES B�TES",French,Drama,2018-12-19,40000.00,40000.00,Advance,"Development Program",
2018-2019,P3,"Association coop�rative de productions audio-visuelles",Montreal,Quebec,Canada,"L'UNIVERS ME COMPREND ET M'ENGLOUTIT",French,Drama,2018-12-19,15000.00,15000.00,Advance,"Development Program",
2018-2019,P3,"Productions Karaman inc.",Brossard,Quebec,Canada,"La lumi�re s'�teignit",French,"Science fiction/Fantasy/Tale",2018-11-14,15000.00,15000.00,Advance,"Development Program",
2018-2019,P4,"Lockpicker Productions Inc.",Toronto,Ontario,Canada,"Reasons to Travel",English,Drama,2019-01-25,15000.00,15000.00,Advance,"Development Program",
2018-2019,P4,"Lockpicker Productions Inc.",Toronto,Ontario,Canada,"Small Victories",English,"Historical Drama",2019-01-25,15000.00,15000.00,Advance,"Development Program",
2018-2019,P3,"Montefiore Films Inc.",Sudbury,Ontario,Canada,"October Crise",English,Comedy,2018-11-20,20000.00,20000.00,Advance,"Development Program",
2018-2019,P3,"PUNK Films Inc.",Toronto,Ontario,Canada,"Queen Tut",English,Drama,2018-11-06,15000.00,15000.00,Advance,"Development Program",
2018-2019,P3,"Max Films Inc.",Montreal,Quebec,Canada,"LETTRES � MARIE-VICTORIN",French,"Historical Drama",2018-11-15,90000.00,90000.00,Advance,"Development Program",
2018-2019,P3,"Max Films Inc.",Montreal,Quebec,Canada,"MAGASIN G�N�RAL",French,"Romantic Comedy",2018-11-15,15000.00,15000.00,Advance,"Development Program",
2018-2019,P3,"V�locit� International inc.",Qu�bec,Quebec,Canada,"Ax, l'affaire Lukkari",French,Action/Adventure,2018-11-05,15000.00,15000.00,Advance,"Development Program",
2018-2019,P3,"Topsail Development Limited",Halifax,"Nova Scotia",Canada,Gerrymandering,English,Comedy,2018-11-16,34769.00,34769.00,Advance,"Development Program",
2018-2019,P3,"Cave Painting Pictures Inc.",Toronto,Ontario,Canada,Knucklebone,English,Action/Adventure,2018-11-06,15000.00,15000.00,Advance,"Development Program",
2018-2019,P4,"Rhombus Media Inc.",Toronto,Ontario,Canada,"Child's Play",English,Drama,2019-01-03,131959.00,131959.00,Advance,"Development Program",
2018-2019,P4,"Rhombus Media Inc.",Toronto,Ontario,Canada,"Massey '53",English,"Historical Drama",2019-01-03,44800.00,44800.00,Advance,"Development Program",
2018-2019,P4,"Rhombus Media Inc.",Toronto,Ontario,Canada,"One Shot Sonya",English,Western,2019-01-03,22792.00,22792.00,Advance,"Development Program",
2018-2019,P4,"Buffalo Gal Pictures Inc.",Winnipeg,Manitoba,Canada,Piimpaatow,English,Drama,2019-02-25,15000.00,15000.00,Advance,"Development Program",
2018-2019,P4,"Buffalo Gal Pictures Inc.",Winnipeg,Manitoba,Canada,Coppermine,English,"Historical Drama",2019-02-25,20000.00,20000.00,Advance,"Development Program",
2018-2019,P4,"Buffalo Gal Pictures Inc.",Winnipeg,Manitoba,Canada,"Evening Chorus",English,"Historical Drama",2019-02-25,40000.00,40000.00,Advance,"Development Program",
2018-2019,P3,"Grassfire Films Inc.","New Waterford","Nova Scotia",Canada,Ophelia,English,Drama,2018-11-27,15000.00,15000.00,Advance,"Development Program",
2018-2019,P3,"Alcina Pictures Ltd.",Toronto,Ontario,Canada,"Night Raiders",English,"Science fiction/Fantasy/Tale",2018-11-21,15000.00,15000.00,Advance,"Development Program",
2018-2019,P3,"Alcina Pictures Ltd.",Toronto,Ontario,Canada,"Sharp Corner",English,Thriller,2018-11-21,20000.00,20000.00,Advance,"Development Program",
2018-2019,P3,"Story Hawk Pictures Inc.",Toronto,Ontario,Canada,Morbus,English,Thriller,2018-11-13,15000.00,15000.00,Advance,"Development Program",
2018-2019,P3,"A M�dia Productions Inc.",Montreal,Quebec,Canada,"C�t� passager",French,Drama,2018-11-14,25000.00,25000.00,Advance,"Development Program",
2018-2019,P4,"6909060 Canada Inc.",Montreal,Quebec,Canada,"Simmer Down",English,"Romantic Comedy",2019-02-21,15000.00,15000.00,Advance,"Development Program",
2018-2019,P3,"Achromatic Media Inc.",Montreal,Quebec,Canada,Aime-Moi,French,Drama,2018-11-08,15000.00,15000.00,Advance,"Development Program",
2018-2019,P3,"julijette inc.",Winnipeg,Manitoba,Canada,Lemniscate,English,"Science fiction/Fantasy/Tale",2018-12-04,20000.00,20000.00,Advance,"Development Program",
2018-2019,P3,"Productions 10e Ave Inc.",Saint-Augustin-de-Desmaures,Quebec,Canada,"F�lix 2",French,Action/Adventure,2018-12-20,55000.00,55000.00,Advance,"Development Program",
2018-2019,P3,"Productions 10e Ave Inc.",Saint-Augustin-de-Desmaures,Quebec,Canada,"Le duc de Godendard",French,"Science fiction/Fantasy/Tale",2018-12-20,45000.00,45000.00,Advance,"Development Program",
2018-2019,P3,"Eye Steel Film Inc.",Montreal,Quebec,Canada,"Chad Kassam: Renaissance Man of the Blues",English,Documentary,2018-11-08,15000.00,15000.00,Advance,"Development Program",
2018-2019,P3,"Goodbye Productions Inc.",Vancouver,"British Columbia",Canada,"The Bearded Girl",English,Drama,2018-11-21,15000.00,15000.00,Advance,"Development Program",
2018-2019,P3,"Goodbye Productions Inc.",Vancouver,"British Columbia",Canada,"Once Our Land",English,"Science fiction/Fantasy/Tale",2018-11-21,15000.00,15000.00,Advance,"Development Program",
2018-2019,P3,"CarpeDiem Film & TV Inc.",Montreal,Quebec,Canada,"Le Roi des R�ves",French,Action/Adventure,2018-11-05,60000.00,60000.00,Advance,"Development Program",
2018-2019,P4,"Lithium Studios Productions Inc.",Toronto,Ontario,Canada,"You Belong to Me",English,Thriller,2019-01-11,15000.00,15000.00,Advance,"Development Program",
2018-2019,P3,"Full Regalia Enterprises Inc.",Gibsons,"British Columbia",Canada,"#memorymaker (working title)",English,Thriller,2018-10-18,15000.00,15000.00,Advance,"Development Program",
2018-2019,P4,"Documentary Organization of Canada",Toronto,Ontario,Canada,"Festival Concierge",,,2019-03-11,8000.00,8000.00,Contribution,"Promotion Program",
2018-2019,P3,"Euclid 431 Pictures Inc.",Toronto,Ontario,Canada,"THE BEGINNING",English,Thriller,2018-12-13,15000.00,15000.00,Advance,"Development Program",
2018-2019,P3,"Darius Films Inc.",Toronto,Ontario,Canada,"Better Now",English,Comedy,2018-11-06,15000.00,15000.00,Advance,"Development Program",
2018-2019,P3,"Darius Films Inc.",Toronto,Ontario,Canada,"Virgin Summer",English,Comedy,2018-11-06,25000.00,25000.00,Advance,"Development Program",
2018-2019,P3,"Item 7 Inc.",Montreal,Quebec,Canada,"The Traveler",English,Comedy,2018-12-19,17500.00,17500.00,Advance,"Development Program",
2018-2019,P3,"Item 7 Inc.",Montreal,Quebec,Canada,30-Love,French,Comedy,2018-12-19,35000.00,35000.00,Advance,"Development Program",
2018-2019,P3,"Item 7 Inc.",Montreal,Quebec,Canada,Darling,English,Drama,2018-12-19,15000.00,15000.00,Advance,"Development Program",
2018-2019,P3,"Item 7 Inc.",Montreal,Quebec,Canada,Fencing,English,Drama,2018-12-19,71865.00,71865.00,Advance,"Development Program",
2018-2019,P3,"Item 7 Inc.",Montreal,Quebec,Canada,"Inherited Night",English,Drama,2018-12-19,15000.00,15000.00,Advance,"Development Program",
2018-2019,P3,"Item 7 Inc.",Montreal,Quebec,Canada,�chou�,French,Drama,2018-12-19,15000.00,15000.00,Advance,"Development Program",
2018-2019,P3,"Item 7 Inc.",Montreal,Quebec,Canada,"Une vie intelligente",French,Drama,2018-12-19,25635.00,25635.00,Advance,"Development Program",
2018-2019,P3,"Honalee Productions Inc.",Vancouver,"British Columbia",Canada,Pyramiden,English,Horror,2018-11-16,20000.00,20000.00,Advance,"Development Program",
2018-2019,P3,"Circle Blue Films Inc.",Mississauga,Ontario,Canada,"NO FORWARDING ADDRESS",English,Comedy,2018-11-06,15000.00,15000.00,Advance,"Development Program",
2018-2019,P4,"Possibles M�dia inc.",Montreal,Quebec,Canada,"Le Fr�re",French,Drama,2019-02-04,15000.00,15000.00,Advance,"Development Program",
2018-2019,P4,"Possibles M�dia inc.",Montreal,Quebec,Canada,L'immacul�e,French,Drama,2019-02-04,15000.00,15000.00,Advance,"Development Program",
2018-2019,P3,"6981780 CANADA INC.",Toronto,Ontario,Canada,"The Northwoods",English,Thriller,2018-11-21,15000.00,15000.00,Advance,"Development Program",
2018-2019,P3,"Freddie Films Inc.",Toronto,Ontario,Canada,"NOT SUITABLE FOR CHILDREN",English,Thriller,2018-12-10,15000.00,15000.00,Advance,"Development Program",
2018-2019,P3,"Bel Ange Moon Productions Inc.",Laval,Quebec,Canada,"En Sc�ne!",French,Drama,2018-11-21,15000.00,15000.00,Advance,"Development Program",
2018-2019,P3,"Kunuk Cohn Productions Inc.",Montreal,Quebec,Canada,"Portfolio | Portefeuille 2018-2019 Kunuk Cohn Productions Inc.",English,,2018-12-13,15000.00,15000.00,Advance,"Development Program",
2018-2019,P3,"Couzin Films Inc.",Montreal,Quebec,Canada,"Loup solitaire",French,Drama,2018-11-09,15000.00,15000.00,Advance,"Development Program",
2018-2019,P3,"Films S�ville Inc. (Les)",Montreal,Quebec,Canada,"POUR VIVRE ICI",French,Drama,2018-11-23,1500.00,1500.00,Contribution,"International Marketing Program",
2018-2019,P3,"Creative Women Workshops Association","North Vancouver","British Columbia",Canada,"Women In the Director's Chair - WIDC 2019",,,2018-11-14,50000.00,50000.00,Contribution,"Promotion Program",
2018-2019,P3,"1459479 Alberta Inc. dba Raging River Productions",Calgary,Alberta,Canada,"April in Autumn",English,Drama,2018-10-23,1500.00,1500.00,Contribution,"International Marketing Program",
2018-2019,P3,"9185-6120 Qu�bec Inc.",Montreal,Quebec,Canada,"La grande noirceur",French,Drama,2018-10-18,1500.00,1500.00,Contribution,"International Marketing Program",
2018-2019,P3,"A71 Entertainment Inc.",Toronto,Ontario,Canada,"Becoming Burlesque",English,,2018-11-28,43750.00,43750.00,Advance,"Marketing Program",
2018-2019,P3,"Fondation Fabienne Colas",Saint-Lambert,Quebec,Canada,"Festival International du Film Black de Montr�al",,,2018-10-24,25000.00,25000.00,Contribution,"Promotion Program",
2018-2019,P4,"Mongrel Media Inc.",Toronto,Ontario,Canada,"Anthropocene: The Human Epoch",English,Documentary,2019-01-11,185178.00,185178.00,Advance,"Marketing Program",
2018-2019,P4,"DIY Films inc.",Montreal,Quebec,Canada,"Boat People: Coming Home",French,Documentary,2019-02-13,45000.00,45000.00,Contribution,"Theatrical Documentary Program",
2018-2019,P3,"Firecrackers Film Incorporated",Bolton,Ontario,Canada,Firecrackers,English,,2018-12-17,1500.00,1500.00,Contribution,"International Marketing Program",
2018-2019,P3,"Filmoption International Inc.",Westmount,Quebec,Canada,L'Amour,French,Drama,2018-11-23,93750.00,93750.00,Advance,"Marketing Program",
2018-2019,P4,"9361-4378 Qu�bec inc.",Montreal,Quebec,Canada,Gen�se,French,Drama,2019-02-28,1500.00,1500.00,Contribution,"International Marketing Program",
2018-2019,P4,"Milkman Productions Inc.",Toronto,Ontario,Canada,"My Dead Dad's Porno Tapes",English,,2019-01-10,1500.00,1500.00,Contribution,"International Marketing Program",
2018-2019,P4,"9361-4378 Qu�bec inc.",Montreal,Quebec,Canada,Gen�se,French,Drama,2019-03-06,1500.00,1500.00,Contribution,"International Marketing Program",
2018-2019,P4,"Blood in the Snow Canadian Film Festival",Toronto,Ontario,Canada,"2018 Blood in The Snow Film Festival",,,2019-01-04,5000.00,5000.00,Contribution,"Promotion Program",
2018-2019,P4,"9361-4378 Qu�bec inc.",Montreal,Quebec,Canada,Gen�se,French,Drama,2019-02-28,1500.00,1500.00,Contribution,"International Marketing Program",
2018-2019,P4,"Elevation Pictures Corp.",Toronto,Ontario,Canada,"Our House",English,Horror,2019-03-04,122382.00,122382.00,Advance,"Marketing Program",
2018-2019,P4,"Filmoption International Inc.",Westmount,Quebec,Canada,"Song of Granite",English,,2019-02-08,26250.00,26250.00,Advance,"Marketing Program",
2018-2019,P3,"Productions Caramel Film Inc.",Montreal,Quebec,Canada,"Le Retour de Silverman",French,Comedy,2018-12-18,56873.00,56873.00,Advance,"Development Program",
2018-2019,P3,"Productions Caramel Film Inc.",Montreal,Quebec,Canada,"Le Premier qui rira",French,Drama,2018-12-18,15000.00,15000.00,Advance,"Development Program",
2018-2019,P3,"Productions Caramel Film Inc.",Montreal,Quebec,Canada,Peshawar,French,Drama,2018-12-18,76100.00,76100.00,Advance,"Development Program",
2018-2019,P3,"Productions Caramel Film Inc.",Montreal,Quebec,Canada,L'Anglais,English,"Romantic Comedy",2018-12-18,67027.00,67027.00,Advance,"Development Program",
2018-2019,P3,"DCP Mystery Arts Inc.",Toronto,Ontario,Canada,"Cold & Old",English,Comedy,2018-12-20,17706.00,17706.00,Advance,"Development Program",
2018-2019,P3,"DCP Mystery Arts Inc.",Toronto,Ontario,Canada,"Ice Cream Mondae",English,Drama,2018-12-20,58960.00,58960.00,Advance,"Development Program",
2018-2019,P3,"DCP Mystery Arts Inc.",Toronto,Ontario,Canada,"Distinguished Conduct",English,"Historical Drama",2018-12-20,61666.00,61666.00,Advance,"Development Program",
2018-2019,P3,"DCP Mystery Arts Inc.",Toronto,Ontario,Canada,"The Sound of Thunder",English,"Historical Drama",2018-12-20,61666.00,61666.00,Advance,"Development Program",
2018-2019,P4,"Screen Nova Scotia Industry Association",Halifax,"Nova Scotia",Canada,"Screen Nova Scotia Broadcaster & Distributor Forum",,,2019-01-17,3000.00,3000.00,Contribution,"Promotion Program",
2018-2019,P3,"The Quebec English-Language Production Council (QEPC)",Montreal,Quebec,Canada,"OLMC Production Research Report",,,2018-10-26,5000.00,5000.00,Contribution,"Promotion Program",
2018-2019,P3,"The Quebec English-Language Production Council (QEPC)",Montreal,Quebec,Canada,"Indigenous Production Research Report",,,2018-10-26,5000.00,5000.00,Contribution,"Promotion Program",
2018-2019,P3,"Festival cin�ma du monde de Sherbrooke",Sherbrooke,Quebec,Canada,"Festival cin�ma du monde de Sherbrooke",,,2018-11-28,5000.00,5000.00,Contribution,"Promotion Program",
2018-2019,P4,"Acad�mie canadienne du cin�ma et de la t�l�vision (section Qu�bec) Inc.",Montreal,Quebec,Canada,"Prix G�meaux / Party des 1000 / Bourses de l'Acad�mie",,,2019-03-05,141250.00,141250.00,Contribution,"Promotion Program",
2018-2019,P3,"LIGNE 7 SAS",Tourcoing,,France,"La Terre vue du coeur",French,Documentary,2018-11-29,20000.00,20000.00,Contribution,"Export Assistance Program",
2018-2019,P3,"Maison 4:3 Inc.",Montreal,Quebec,Canada,"HAPPY FACE",English,,2018-12-12,39024.00,39024.00,Advance,"Marketing Program",
2018-2019,P3,"Hudson Festival of Canadian Film",Hudson,Quebec,Canada,"Hudson Festival of Canadian Film",,,2018-11-15,2000.00,2000.00,Contribution,"Promotion Program",
2018-2019,P4,"National Screen Institute - Canada",Winnipeg,Manitoba,Canada,"National Screen Institute (NSI) training programs",,,2019-01-10,229500.00,229500.00,Contribution,"Promotion Program",
2018-2019,P3,"Association qu�b�coise de la production m�diatique",Montreal,Quebec,Canada,"Congr�s AQPM",,,2018-12-14,7000.00,7000.00,Contribution,"Promotion Program",
2018-2019,P4,"White Pine Pictures Inc.",Toronto,Ontario,Canada,"The Corporate Coup d'E' tat",English,Drama,2019-02-13,4000.00,4000.00,Contribution,"International Marketing Program",
2018-2019,P4,"Island Media Arts Co-Operative Limited",Charlottetown,"Prince Edward Island",Canada,"The PEI Screenwriters' Bootcamp 2019",,,2019-02-12,15000.00,15000.00,Contribution,"Promotion Program",
2018-2019,P3,"L'OEIL VIF (Faisant affaire sous le nom Les Films du 3 mars)",Montreal,Quebec,Canada,Ensemble,French,Documentary,2018-12-20,9967.00,9967.00,Advance,"Marketing Program",
2018-2019,P3,"Maison 4:3 Inc.",Montreal,Quebec,Canada,"R�PERTOIRE DES VILLES",French,,2018-12-21,125000.00,125000.00,Advance,"Marketing Program",
2018-2019,P3,"Tortuga films productions III Inc.",Rimouski,Quebec,Canada,"LES COASTERS",French,Documentary,2018-12-14,15000.00,15000.00,Advance,"Marketing Program",
2018-2019,P4,"Newfoundland Independent Filmmakers Co-Operative","St. John's",Newfoundland/Labrador,Canada,"Picture Start",,,2019-01-18,49000.00,49000.00,Contribution,"Promotion Program",
2018-2019,P3,"Giant Little Ones Film Inc.",Toronto,Ontario,Canada,"Giant Little Ones (The)",English,Drama,2018-11-05,1500.00,1500.00,Contribution,"International Marketing Program",
2018-2019,P3,"Global Visions Festival Society",Edmonton,Alberta,Canada,"NorthwestFest 2018 Red Carpet",,,2018-12-21,5000.00,5000.00,Contribution,"Promotion Program",
2018-2019,P4,"Global Visions Festival Society",Edmonton,Alberta,Canada,"NorthwestFest 2019",,,2019-01-22,5000.00,5000.00,Contribution,"Promotion Program",
2018-2019,P3,"9259-4654 Qu�bec inc.",Montreal,Quebec,Canada,"L'�tat sauvage",French,"Historical Drama",2018-11-30,400000.00,400000.00,Investment,"Production Program",
2018-2019,P3,"Voyelles Films inc.",Montreal,Quebec,Canada,"All you can eat Bouddha",French,Drama,2018-11-26,1500.00,1500.00,Contribution,"International Marketing Program",
2018-2019,P3,Paraloeil,Rimouski,Quebec,Canada,"Cin�ma Paraloeil - du cin�ma qui nous regarde",,,2018-12-10,8140.00,8140.00,Contribution,"Promotion Program",
2018-2019,P4,"Reprise Films Inc.","Ville Mont-Royal",Quebec,Canada,"� nous l'�ternit�",French,Drama,2019-02-21,4700.00,4700.00,Contribution,"International Marketing Program",
2018-2019,P4,"Aqute Media Inc.",Toronto,Ontario,Canada,"Sorry For Your Loss",English,,2019-03-29,24564.00,24564.00,Advance,"Marketing Program",
2018-2019,P3,"Antenne cr�ative",Montreal,Quebec,Canada,"HUB MONTREAL 2018",,,2018-12-10,10000.00,10000.00,Contribution,"Promotion Program",
2018-2019,P4,"Femmes du cinema, de la television et des m�dias num�riques",Montreal,Quebec,Canada,"Programmation annuelle et gala FCTMN",,,2019-01-31,20000.00,20000.00,Contribution,"Promotion Program",
2018-2019,P3,"Visions Ouest Productions",Vancouver,"British Columbia",Canada,"Rendez-vous du cin�ma qu�b�cois et francophone de Vancouver",,,2018-11-30,13132.00,13132.00,Contribution,"Promotion Program",
2018-2019,P3,"A71 Entertainment Inc.",Toronto,Ontario,Canada,"Love Jacked",English,,2018-12-13,150675.00,150675.00,Advance,"Marketing Program",
2018-2019,P4,"Funfilm Distribution Inc.",Montreal,Quebec,Canada,"La grande noirceur",French,,2019-02-06,34000.00,34000.00,Advance,"Marketing Program",
2018-2019,P4,"Banner House Productions Inc.",Montreal,Quebec,Canada,"Untitled Smuggler Project",English,Thriller,2019-01-18,15000.00,15000.00,Advance,"Development Program",
2018-2019,P4,"9151-1766 Qu�bec Inc.",Montreal,Quebec,Canada,"Le Lys, l'�rable et le jasmin",French,Drama,2019-02-06,15000.00,15000.00,Advance,"Development Program",
2018-2019,P4,"Second Chance Productions Inc.",Vancouver,"British Columbia",Canada,Moonwalker,English,"Science fiction/Fantasy/Tale",2019-02-19,15000.00,15000.00,Advance,"Development Program",
2018-2019,P4,"Hawkeye Pictures Inc.",Toronto,Ontario,Canada,"The Honey Farm",English,Thriller,2019-02-20,15000.00,15000.00,Advance,"Development Program",
2018-2019,P4,"ZMA Productions Inc.",Montreal,Quebec,Canada,"Le dilemme",French,Drama,2019-01-22,15000.00,15000.00,Advance,"Development Program",
2018-2019,P4,"Vroom Productions Inc.",Dewittville,Quebec,Canada,Prude,English,Drama,2019-01-23,15000.00,15000.00,Advance,"Development Program",
2018-2019,P4,"Canadian Media Producers Association - Association canadienne de la production m�diatique",Toronto,Ontario,Canada,"Profile: Economic Report",,,2019-02-05,15000.00,15000.00,Contribution,"Promotion Program",
2018-2019,P4,"Reel Media Entertainment Inc.",Montreal,Quebec,Canada,Enforcer,English,Drama,2019-01-29,15000.00,15000.00,Advance,"Development Program",
2018-2019,P4,"Yukon Film Society",Whitehorse,Yukon,Canada,"Available Light Film Festival",,,2019-01-11,8813.00,8813.00,Contribution,"Promotion Program",
2018-2019,P3,"GESTION CTVM + WEB INC",Outremont,Quebec,Canada,"Promotion et visibilit� de T�l�film Canada sur CTVM.info",,,2018-12-12,23000.00,23000.00,Contribution,"Promotion Program",
2018-2019,P4,"Festival International du Film sur l'Art",Montreal,Quebec,Canada,"Festival International du Film sur l'Art",,,2019-01-17,34608.00,34608.00,Contribution,"Promotion Program",
2018-2019,P4,"SHERPAS FILMS INC.",Montreal,Quebec,Canada,"Viens t'en chez nous",French,Comedy,2019-03-13,15000.00,15000.00,Advance,"Development Program",
2018-2019,P4,"Raven Banner Releasing Inc.",Toronto,Ontario,Canada,"The Hollow Child",English,,2019-02-11,40672.00,40672.00,Advance,"Marketing Program",
2018-2019,P4,"Films du Rapide-Blanc Inc.",Montreal,Quebec,Canada,"MENSONGE D'UNE NUIT D'�T�",French,Drama,2019-02-07,15000.00,15000.00,Advance,"Development Program",
2018-2019,P3,"Cin� Qu�bec",Boucherville,Quebec,Canada,"CIN� QU�BEC",,,2018-12-04,36048.00,36048.00,Contribution,"Promotion Program",
2018-2019,P4,"Vlimeuses productions inc.",Montreal,Quebec,Canada,"Tous mes premiers amours",French,Drama,2019-02-06,15000.00,15000.00,Advance,"Development Program",
2018-2019,P4,"Vues d'Afrique",Montreal,Quebec,Canada,"FESTIVAL INTERNATIONAL DE CIN�MA VUES D'AFRIQUE",,,2019-03-12,21659.00,21659.00,Contribution,"Promotion Program",
2018-2019,P4,"Cineast Screen Development Limited",Halifax,"Nova Scotia",Canada,PURSUIT,English,Drama,2019-01-14,15000.00,15000.00,Advance,"Development Program",
2018-2019,P4,"Reel to Real: A Celebration Of Moving Images For Youth Society",Vancouver,"British Columbia",Canada,"Reel 2 Real International Film Festival for Youth",,,2019-01-14,7528.00,7528.00,Contribution,"Promotion Program",
2018-2019,P4,"Meridian Artists Inc.",Toronto,Ontario,Canada,"Toronto Screenwriting Conference (TSC)",,,2019-02-07,8000.00,8000.00,Contribution,"Promotion Program",
2018-2019,P4,"Clique Pictures Inc.",Toronto,Ontario,Canada,"Mush Hole",English,"Historical Drama",2019-02-14,15000.00,15000.00,Advance,"Development Program",
2018-2019,P4,"Calgary Underground Film Festival Society",Calgary,Alberta,Canada,"Calgary Underground Film Festival",,,2019-01-14,5000.00,5000.00,Contribution,"Promotion Program",
2018-2019,P3,"136469 Canada Limited o/a Sphinx Productions",Toronto,Ontario,Canada,"Carmine Street Guitars",English,,2018-12-04,1500.00,1500.00,Contribution,"International Marketing Program",
2018-2019,P4,"ON SCREEN MANITOBA INCORPORATED",Winnipeg,Manitoba,Canada,"All Access",,,2019-03-06,17000.00,17000.00,Contribution,"Promotion Program",
2018-2019,P4,"Mouthpiece (FGM) Films Inc.",Toronto,Ontario,Canada,Mouthpiece,English,Drama,2019-03-14,4500.00,4500.00,Contribution,"International Marketing Program",
2018-2019,P3,"Films Christal, s.e.c.(Les), agissant par l'interm�diaire de son commandit�, Les Films Christal Inc",Montreal,Quebec,Canada,"� TOUS CEUX QUI NE ME LISENT PAS",French,,2018-12-19,86663.00,86663.00,Advance,"Marketing Program",
2018-2019,P4,"Leona Films Inc.",Montreal,Quebec,Canada,Brotherhood,English,Drama,2019-03-14,1500.00,1500.00,Contribution,"International Marketing Program",
2018-2019,P4,"Caravane Films Productions",Chicoutimi,Quebec,Canada,"Festival REGARD / March� du court",,,2019-01-03,37159.00,37159.00,Contribution,"Promotion Program",
2018-2019,P4,"Caravane Films Productions",Chicoutimi,Quebec,Canada,"Festival REGARD / March� du court",,,2019-02-15,47159.00,37159.00,Contribution,"Promotion Program","Amended Contract Signed 03-Jan-2019"
2018-2019,P3,"Women In Film & Television Vancouver Society",Vancouver,"British Columbia",Canada,"VIWIFF and WIFT-V Genre Lab",,,2018-12-07,15000.00,15000.00,Contribution,"Promotion Program",
2018-2019,P3,"Festival International de Musique POP Montr�al",Montreal,Quebec,Canada,"POP Montreal",,,2018-12-18,5000.00,5000.00,Contribution,"Promotion Program",
2018-2019,P4,"Clumsy Ophelia Productions Inc.",Toronto,Ontario,Canada,"The Look of Love",English,Drama,2019-03-13,15000.00,15000.00,Advance,"Development Program",
2018-2019,P4,"Play Your Gender Inc.",Dartmouth,"Nova Scotia",Canada,"The Freeze",English,Thriller,2019-01-22,15000.00,15000.00,Advance,"Development Program",
2018-2019,P4,"Realm Productions & Advertising Inc.","Saint John","New Brunswick",Canada,Experimental,English,Horror,2019-01-21,15000.00,15000.00,Advance,"Development Program",
2018-2019,P4,"9361-4378 Qu�bec inc.",Montreal,Quebec,Canada,Gen�se,French,Drama,2019-02-28,1500.00,1500.00,Contribution,"International Marketing Program",
2018-2019,P4,"Productions cin�-sc�ne inc.",Qu�bec,Quebec,Canada,"La loi de murphy",French,Comedy,2019-02-06,15000.00,15000.00,Advance,"Development Program",
2018-2019,P4,"CCI Entertainment Ltd.",Toronto,Ontario,Canada,Sovest,English,"Historical Drama",2019-02-19,15000.00,15000.00,Advance,"Development Program",
2018-2019,P4,"Mia Film Inc.",Winnipeg,Manitoba,Canada,D�COUP(L)�,French,Drama,2019-02-13,15000.00,15000.00,Advance,"Development Program",
2018-2019,P3,"FESTIVAL DU FILM INTERNATIONAL DE BAIE-COMEAU (CINOCHE) INC",Baie-Comeau,Quebec,Canada,"Festival du film international de Baie-Comeau (Cinoche)",,,2018-12-20,6000.00,6000.00,Contribution,"Promotion Program",
2018-2019,P4,"KMLT Productions Inc.",Vancouver,"British Columbia",Canada,"Body Remembers When the World Broke Open (The)",English,Drama,2019-01-31,25000.00,25000.00,Contribution,"International Marketing Program",
2018-2019,P4,"Wildling Pictures Inc.",Toronto,Ontario,Canada,"BE MY EYES",English,Thriller,2019-02-22,15000.00,15000.00,Advance,"Development Program",
2018-2019,P4,"Gearshift Films Inc.",Toronto,Ontario,Canada,Nextworld,English,"Science fiction/Fantasy/Tale",2019-02-05,15000.00,15000.00,Advance,"Development Program",
2018-2019,P4,"Opus 59 Films Inc.",Vancouver,"British Columbia",Canada,"Stanley Park",English,Drama,2019-02-22,15000.00,15000.00,Advance,"Development Program",
2018-2019,P3,"Storyline Fx Inc.",Winnipeg,Manitoba,Canada,"Freeze Frame",,,2018-12-13,9345.00,9345.00,Contribution,"Promotion Program",
2018-2019,P4,"Academy Of Canadian Cinema And Television - Acad�mie Canadienne du Cin�ma et de la T�l�vision",Toronto,Ontario,Canada,"Canadian Screen Arts Festival",,,2019-03-22,37500.00,37500.00,Contribution,"Promotion Program",
2018-2019,P4,"The Film And Video Arts Society of Alberta",Edmonton,Alberta,Canada,"FAVA FEST 2019",,,2019-03-15,2500.00,2500.00,Contribution,"Promotion Program",
2018-2019,P4,"Charles Taylor Theatre & Media Arts Association",Dartmouth,"Nova Scotia",Canada,"The Emerging Lens Cultural Film Festival",,,2019-01-11,5000.00,5000.00,Contribution,"Promotion Program",
2018-2019,P4,"Northern Visions Independent Video & Film Association",Toronto,Ontario,Canada,"2019 Images Festival",,,2019-01-08,22784.00,22784.00,Contribution,"Promotion Program",
2018-2019,P4,"Across Borders Media Inc.",Victoria,"British Columbia",Canada,"Media that Matters: The Nature of Media",,,2019-01-17,5000.00,5000.00,Contribution,"Promotion Program",
2018-2019,P4,"Funfilm Distribution Inc.",Montreal,Quebec,Canada,"Une Colonie (AKA Pour toujours)",French,Drama,2019-02-06,32000.00,32000.00,Advance,"Marketing Program",
2018-2019,P4,"Winnipeg Film Group Inc.",Winnipeg,Manitoba,Canada,"Gimme Some Truth Documentary Festival",,,2019-02-20,3500.00,3500.00,Contribution,"Promotion Program",
2018-2019,P4,"The Inside Out LGBT Film Festival Inc.",Toronto,Ontario,Canada,"Toronto LGBT Film Festival",,,2019-01-11,5000.00,5000.00,Contribution,"Promotion Program",
2018-2019,P4,"Independent Web Series Creators of Canada",Toronto,Ontario,Canada,"T.O. WebFest",,,2019-01-14,5000.00,5000.00,Contribution,"Promotion Program",
2018-2019,P4,"Oakville Festivals of Film and Art",Oakville,Ontario,Canada,"Oakville Film Festival",,,2019-02-21,5000.00,5000.00,Contribution,"Promotion Program",
2018-2019,P4,"Reel Shorts Film Society","Grande Prairie",Alberta,Canada,"Reel Shorts Film Festival",,,2019-01-10,5000.00,5000.00,Contribution,"Promotion Program",
2018-2019,P4,"Alberta Media Production Industries  Association (AMPIA)",Edmonton,Alberta,Canada,"AMPIA Professional Development Initiatives",,,2019-01-17,20000.00,20000.00,Contribution,"Promotion Program",
2018-2019,P4,"Winnipeg Aboriginal Film and Video Festival Inc.",Winnipeg,Manitoba,Canada,"Winnipeg Aboriginal Film and Video Festival",,,2019-03-20,5000.00,5000.00,Contribution,"Promotion Program",
2018-2019,P4,"The Documentary Media Society",Vancouver,"British Columbia",Canada,"DOXA Documentary Film Festival",,,2019-01-24,10815.00,10815.00,Contribution,"Promotion Program",
2018-2019,P4,"Coop Spira",Qu�bec,Quebec,Canada,Acadiana,French,Documentary,2019-03-05,1500.00,1500.00,Contribution,"International Marketing Program",
2018-2019,P4,"Films S�ville Inc. (Les)",Montreal,Quebec,Canada,"La Course des Tuques",French,,2019-02-06,751914.00,751914.00,Advance,"Marketing Program",
2018-2019,P3,"Euclid 431 Pictures Inc.",Toronto,Ontario,Canada,"Giant Little Ones (The)",English,Drama,2018-12-17,1500.00,1500.00,Contribution,"International Marketing Program",
2018-2019,P4,"Films S�ville Inc. (Les)",Montreal,Quebec,Canada,"Disparition des lucioles (La)",French,Drama,2019-02-19,1500.00,1500.00,Contribution,"International Marketing Program",
2018-2019,P4,"The Standard Model Inc.",Toronto,Ontario,Canada,"Woman in Stall",English,Drama,2019-02-15,2500.00,2500.00,Contribution,"International Marketing Program",
2018-2019,P4,"A71 Entertainment Inc.",Toronto,Ontario,Canada,"An Audience of Chairs",English,,2019-02-07,35516.00,35516.00,Advance,"Marketing Program",
2018-2019,P4,"Dreamspeakers Festival Society",Edmonton,Alberta,Canada,"Dreamspeakers Film Festival",,,2019-03-26,5000.00,5000.00,Contribution,"Promotion Program",
2018-2019,P4,"Corporation Wapikoni Mobile",Montreal,Quebec,Canada,"Katatjatuuk Kangirsumi (Chants de gorges � Kangirsuk)",French,Documentary,2019-02-18,1500.00,1500.00,Contribution,"International Marketing Program",
2018-2019,P4,"9342-5809 Qu�bec Inc.",Montreal,Quebec,Canada,"Les faux tatouages",French,Drama,2019-01-24,1500.00,1500.00,Contribution,"International Marketing Program",
2018-2019,P4,"Fragments Distribution Inc.",Montreal,Quebec,Canada,"CASH NEXUS",French,,2019-02-27,70000.00,70000.00,Advance,"Marketing Program",
2018-2019,P4,"Hogan Millar Media Inc.",Vancouver,"British Columbia",Canada,BOTERO,English,,2019-02-08,1500.00,1500.00,Contribution,"International Marketing Program",
2018-2019,P4,"Mouthpiece (FGM) Films Inc.",Toronto,Ontario,Canada,Mouthpiece,English,Drama,2019-03-06,1500.00,1500.00,Contribution,"International Marketing Program",
2018-2019,P4,"Le Film Happy Face Inc.",Montreal,Quebec,Canada,"HAPPY FACE",English,Drama,2019-01-18,5000.00,5000.00,Contribution,"International Marketing Program",
2018-2019,P4,"Microclimat Films inc.",Montreal,Quebec,Canada,"Seven Last Words (The)",French,Drama,2019-01-21,10000.00,10000.00,Contribution,"International Marketing Program",
2018-2019,P4,"Bridge Film Productions Inc.",Toronto,Ontario,Canada,"Hugh Hefner's After Dark:  Speaking Out in America",English,Documentary,2019-02-12,1500.00,1500.00,Contribution,"International Marketing Program",
2018-2019,P4,"Moon vs Sun Productions Inc.",Toronto,Ontario,Canada,"I'M GOING TO BREAK YOUR HEART",English,Documentary,2019-01-31,25000.00,25000.00,Advance,"Marketing Program",
2018-2019,P4,"Colonelle films inc.",Montreal,Quebec,Canada,"Une Colonie (AKA Pour toujours)",French,Drama,2019-01-11,25000.00,25000.00,Contribution,"International Marketing Program",
2018-2019,P4,"Productions Couzin Inc",Montreal,Quebec,Canada,"R�pertoire des villes disparues",French,"Science fiction/Fantasy/Tale",2019-01-17,25000.00,25000.00,Contribution,"International Marketing Program",
2018-2019,P4,"Level Film Inc.",Toronto,Ontario,Canada,Transformer,English,,2019-03-26,18232.00,18232.00,Advance,"Marketing Program",
2018-2019,P4,"2513073 Ontario Inc.",Toronto,Ontario,Canada,"Sharkwater: Extinction",English,,2019-01-03,1500.00,1500.00,Contribution,"International Marketing Program",
2018-2019,P4,"Firewood Films Inc.",Toronto,Ontario,Canada,"THE ACCOUNTANT OF AUSCHWITZ",English,Documentary,2019-02-18,1500.00,1500.00,Contribution,"International Marketing Program",
2018-2019,P4,"Bravo Charlie inc.",Montreal,Quebec,Canada,"Chien de garde",French,Thriller,2019-01-31,1500.00,1500.00,Contribution,"International Marketing Program",
2018-2019,P3,"DCP Mystery Arts Inc.",Toronto,Ontario,Canada,"Death of a Ladies' Man",English,Drama,2018-12-20,150000.00,150000.00,Advance,"Production Program",
2018-2019,P4,"2513073 Ontario Inc.",Toronto,Ontario,Canada,"Sharkwater: Extinction",English,,2019-03-04,1500.00,1500.00,Contribution,"International Marketing Program",
2018-2019,P4,"Alice B Productions Inc.",Toronto,Ontario,Canada,"The Heat: A Kitchen (R)evolution",English,Documentary,2019-01-15,1500.00,1500.00,Contribution,"International Marketing Program",
2018-2019,P4,"Films S�ville Inc. (Les)",Montreal,Quebec,Canada,"Anthropocene: The Human Epoch",English,Documentary,2019-03-28,22200.00,22200.00,Contribution,"International Marketing Program",
2018-2019,P4,"Level Film Inc.",Toronto,Ontario,Canada,"Angelique's Isle",English,,2019-02-20,26853.00,26853.00,Advance,"Marketing Program",
2018-2019,P4,"Elevation Pictures Corp.",Toronto,Ontario,Canada,"New Romantic",English,"Romantic Comedy",2019-02-20,111919.00,111919.00,Advance,"Marketing Program",
2018-2019,P4,"Level Film Inc.",Toronto,Ontario,Canada,Brotherhood,English,,2019-03-28,30030.00,30030.00,Advance,"Marketing Program",
2018-2019,P4,"Handful of Films Inc.",Edmonton,Alberta,Canada,"Fast Horse",English,,2019-01-28,1500.00,1500.00,Contribution,"International Marketing Program",
2018-2019,P4,"Productions Festives",Trois-Rivieres,Quebec,Canada,"Les petites vagues",French,,2019-01-29,1500.00,1500.00,Contribution,"International Marketing Program",
2018-2019,P4,"Northwood Productions Inc.",Toronto,Ontario,Canada,"Grizzlies (The)",English,Drama,2019-03-14,5000.00,5000.00,Contribution,"International Marketing Program",
2018-2019,P4,"CMW Productions Incorporated",Dartmouth,"Nova Scotia",Canada,"Little Grey Bubbles",English,,2019-01-15,1500.00,1500.00,Contribution,"International Marketing Program",
2018-2019,P4,"Lithium Studios Productions Inc.",Toronto,Ontario,Canada,"I Will Not Go Quietly",English,Drama,2019-02-25,1500.00,1500.00,Contribution,"International Marketing Program",
2018-2019,P4,"Elevation Pictures Corp.",Toronto,Ontario,Canada,"Indian Horse",English,,2019-03-28,25000.00,25000.00,Contribution,"Export Assistance Program",
2018-2019,P4,"Alyson Richards Productions Inc.",Hamilton,Ontario,Canada,Docking,English,,2019-03-19,1700.00,1700.00,Contribution,"International Marketing Program",
2018-2019,P4,"775 Media Corp.",Calgary,Alberta,Canada,Harpoon,English,,2019-01-25,10000.00,10000.00,Contribution,"International Marketing Program",
2018-2019,P4,"TimeLapse Pictures Productions Inc.",Toronto,Ontario,Canada,"The Stone Speakers",English,,2019-02-26,15200.00,15200.00,Contribution,"International Marketing Program",
2018-2019,P4,"Process Entertainment Inc.",Toronto,Ontario,Canada,S.O.S.,English,,2019-03-12,1500.00,1500.00,Contribution,"International Marketing Program",
2018-2019,P4,"A71 Entertainment Inc.",Toronto,Ontario,Canada,"Into Invisible Light",English,,2019-03-26,42600.00,42600.00,Advance,"Marketing Program",
2018-2019,P4,"9389-2610 Qu�bec Inc",St-Adolphe-d'Howard,Quebec,Canada,"No. 3: In the Absence of Angels",English,Drama,2019-03-29,1700.00,1700.00,Contribution,"International Marketing Program",
2018-2019,P4,"CHINA NEBULA PICTURES (TIANJIN) LTD.","Ecocity, Tianjin",Other,China,"The Breadwinner",English,,2019-03-22,45000.00,45000.00,Contribution,"Export Assistance Program",
2018-2019,P4,"40 Below Films Inc.",Winnipeg,Manitoba,Canada,Retired,English,,2019-02-11,1500.00,1500.00,Contribution,"International Marketing Program",
2018-2019,P4,"Raven Banner Releasing Inc.",Toronto,Ontario,Canada,"Level 16",English,,2019-02-20,52222.00,52222.00,Advance,"Marketing Program",
2018-2019,P4,"La Distributrice de Films",Montreal,Quebec,Canada,Imp�tus,French,Drama,2019-01-24,1500.00,1500.00,Contribution,"International Marketing Program",
2018-2019,P4,"Axia Films inc.",Montreal,Quebec,Canada,D�RIVE,French,Drama,2019-02-13,52070.00,52070.00,Advance,"Marketing Program",
2018-2019,P4,"136469 Canada Limited o/a Sphinx Productions",Toronto,Ontario,Canada,"Carmine Street Guitars",English,,2019-01-15,1500.00,1500.00,Contribution,"International Marketing Program",
2018-2019,P4,"136469 Canada Limited o/a Sphinx Productions",Toronto,Ontario,Canada,"Carmine Street Guitars",English,,2019-01-31,1500.00,1500.00,Contribution,"International Marketing Program",
2018-2019,P4,"2033161 Ontario Limited",Toronto,Ontario,Canada,"Carmine Street Guitars",English,,2019-03-26,17891.00,17891.00,Advance,"Marketing Program",
2018-2019,P4,"136469 Canada Limited o/a Sphinx Productions",Toronto,Ontario,Canada,"Carmine Street Guitars",English,,2019-01-15,1500.00,1500.00,Contribution,"International Marketing Program",
2018-2019,P4,"Diva Film Productions Inc.",Pickering,Ontario,Canada,RUN,English,,2019-01-21,1500.00,1500.00,Contribution,"International Marketing Program",
2018-2019,P4,"Verhagen Entertainment Ltd.",Vancouver,"British Columbia",Canada,"Sure as Hell",English,Drama,2019-02-27,1500.00,1500.00,Contribution,"International Marketing Program",
2018-2019,P4,"C&Y Cinema Ltd.",Toronto,Ontario,Canada,"MS Slavic 7",English,,2019-02-26,23700.00,23700.00,Contribution,"International Marketing Program",
2018-2019,P4,"Euclid 431 Pictures Inc.",Toronto,Ontario,Canada,"Giant Little Ones (The)",English,Drama,2019-01-15,1500.00,1500.00,Contribution,"International Marketing Program",
2018-2019,P4,"Euclid 431 Pictures Inc.",Toronto,Ontario,Canada,"Giant Little Ones (The)",English,Drama,2019-01-24,1500.00,1500.00,Contribution,"International Marketing Program",
2018-2019,P4,"Island Horse Productions Limited","St. John's",Newfoundland/Labrador,Canada,INSIDE,English,,2019-01-30,1500.00,1500.00,Contribution,"International Marketing Program",
2018-2019,P4,"Films S�ville Inc. (Les)",Montreal,Quebec,Canada,"Anthropocene: The Human Epoch",English,Documentary,2019-03-13,9700.00,9700.00,Contribution,"International Marketing Program",
2018-2019,P4,"Sizzle Snap Productions Inc",Burnaby,"British Columbia",Canada,O.I.,English,Drama,2019-02-01,1700.00,1700.00,Contribution,"International Marketing Program",
2018-2019,P4,"9097-4767 Qu�bec Inc.",Montreal,Quebec,Canada,"Juste moi et toi",French,Drama,2019-02-08,1500.00,1500.00,Contribution,"International Marketing Program",
2018-2019,P4,"Films Christal, s.e.c.(Les), agissant par l'interm�diaire de son commandit�, Les Films Christal Inc",Montreal,Quebec,Canada,Malek,French,,2019-02-27,41448.00,41448.00,Advance,"Marketing Program",
2018-2019,P4,"Run This Town Film Inc.",Toronto,Ontario,Canada,"Run This Town",English,,2019-03-20,8200.00,8200.00,Contribution,"International Marketing Program",
2018-2019,P4,"Mixtape VR Inc.",Toronto,Ontario,Canada,Slash/Back,English,,2019-02-21,1500.00,1500.00,Contribution,"International Marketing Program",
2018-2019,P4,"173 Films Inc",Ottawa,Ontario,Canada,Cubicle,English,Drama,2019-03-20,1500.00,1500.00,Contribution,"International Marketing Program",
2018-2019,P4,"Devonshire Productions Inc.",Toronto,Ontario,Canada,"Clear Blue (aka Mersea)",English,Drama,2019-03-18,1500.00,1500.00,Contribution,"International Marketing Program",
2018-2019,P4,"9097-4767 Qu�bec Inc.",Montreal,Quebec,Canada,"Ziva Postec.  La monteuse derri�re le film Shoah",French,Documentary,2019-02-08,4700.00,4700.00,Contribution,"International Marketing Program",
2018-2019,P4,"Featured Creatures Inc.",Toronto,Ontario,Canada,Tito,English,,2019-03-26,4200.00,4200.00,Contribution,"International Marketing Program",
2018-2019,P4,"9361-4378 Qu�bec inc.",Montreal,Quebec,Canada,Gen�se,French,Drama,2019-03-06,1500.00,1500.00,Contribution,"International Marketing Program",
2018-2019,P4,"Sideways Dog Productions Inc.","Richmond Hill",Ontario,Canada,"Who You Know",English,,2019-02-12,1500.00,1500.00,Contribution,"International Marketing Program",
2018-2019,P4,"La Distributrice de Films",Montreal,Quebec,Canada,"The Spirit Keepers of Makuta'ay",English,Documentary,2019-02-04,1700.00,1700.00,Contribution,"International Marketing Program",
2018-2019,P4,"9097-4767 Qu�bec Inc.",Montreal,Quebec,Canada,L'Amour,French,Drama,2019-02-08,3200.00,3200.00,Contribution,"International Marketing Program",
2018-2019,P4,"Maison 4:3 Inc.",Montreal,Quebec,Canada,"LE VIEIL �GE ET L'ESP�RANCE",French,Documentary,2019-03-26,36148.00,36148.00,Advance,"Marketing Program",
2018-2019,P4,"Mixtape VR Inc.",Toronto,Ontario,Canada,Slash/Back,English,,2019-02-21,1500.00,1500.00,Contribution,"International Marketing Program",
2018-2019,P4,"Level Film Inc.",Toronto,Ontario,Canada,"Riot Girls",English,,2019-03-26,24750.00,24750.00,Advance,"Marketing Program",
2018-2019,P4,"Level Film Inc.",Toronto,Ontario,Canada,Firecrackers,English,,2019-03-26,123750.00,123750.00,Advance,"Marketing Program",
2018-2019,P4,"Level Film Inc.",Toronto,Ontario,Canada,"The Incredible 25th Year of Mitzi Bearclaw",English,,2019-03-28,23100.00,23100.00,Advance,"Marketing Program",
2018-2019,P4,"Strada Films Inc.",Toronto,Ontario,Canada,"Kindness of Strangers (AKA: Secrets from the Russian Tea Room)",English,Drama,2019-03-07,25000.00,25000.00,Contribution,"International Marketing Program",
2018-2019,P4,"Hogan Millar Media Inc.",Vancouver,"British Columbia",Canada,BOTERO,English,,2019-02-22,1500.00,1500.00,Contribution,"International Marketing Program",
2018-2019,P4,"Reality Distortion Field Inc.",Vancouver,"British Columbia",Canada,Kryo,English,"Science fiction/Fantasy/Tale",2019-02-21,15000.00,15000.00,Advance,"Development Program",
2018-2019,P4,"9219-3010 Qu�bec Inc.",Montreal,Quebec,Canada,"March� de coproduction - sans projet sp�cifique",French,,2019-03-13,1500.00,1500.00,Contribution,"International Marketing Program",
2018-2019,P4,"Mongrel Media Inc.",Toronto,Ontario,Canada,Goalie,English,,2019-03-14,20872.00,20872.00,Advance,"Marketing Program",
2018-2019,P4,"Funfilm Distribution Inc.",Montreal,Quebec,Canada,"Nous sommes Gold",French,,2019-03-08,30000.00,30000.00,Advance,"Marketing Program",
2018-2019,P4,"Abramorama, LLC",Pleasantville,"New York","United States","Carmine Street Guitars",English,,2019-03-15,33000.00,33000.00,Contribution,"Export Assistance Program",
2018-2019,P4,"Filmoption International Inc.",Westmount,Quebec,Canada,"Troisi�mes noces",French,,2019-03-12,41250.00,41250.00,Advance,"Marketing Program",
2018-2019,P4,"Maestro Films Inc.",Montreal,Quebec,Canada,"L.A Tea Time (anciennement Miranda)",French,Documentary,2019-02-12,5000.00,5000.00,Contribution,"International Marketing Program",
2018-2019,P4,"Faits Divers M�dia inc",Montreal,Quebec,Canada,"Havana, from on high",French,Documentary,2019-03-08,5000.00,5000.00,Contribution,"International Marketing Program",
2018-2019,P4,"L'OEIL VIF (Faisant affaire sous le nom Les Films du 3 mars)",Montreal,Quebec,Canada,"ZIVA POSTEC: La monteuse derri�re le film Shoah",French,,2019-03-06,15000.00,15000.00,Advance,"Marketing Program",
2018-2019,P4,"Hodgee Films Inc.",Vancouver,"British Columbia",Canada,"Who Let the Dogs Out",English,Documentary,2019-03-06,5000.00,5000.00,Contribution,"International Marketing Program",
2018-2019,P4,"Films Christal, s.e.c.(Les), agissant par l'interm�diaire de son commandit�, Les Films Christal Inc",Montreal,Quebec,Canada,"Avant qu'on explose",French,,2019-03-15,168375.00,168375.00,Advance,"Marketing Program",
2018-2019,P4,"Acad�mie canadienne du cin�ma et de la t�l�vision (section Qu�bec) Inc.",Montreal,Quebec,Canada,"Soir�e des finalistes aux prix �crans canadiens 2019",,,2019-03-18,6400.00,6400.00,Contribution,"Promotion Program",
